Cogmind - Beta 11.1 @@@ ROGUE MODE // 2022.06.26 @ 19:12:36 Player: ktur Result: Destroyed by EQ-064 with Graviton Cannon Performance ------------- Evolutions (9) 4500 Regions Visited (35) 7000 Robots Destroyed (180) 900 Value Destroyed (9637) 9637 Prototype IDs (122) 2440 Alien Tech Used (5) 1000 Bonus (16543) 16543 TOTAL SCORE: 42020 Bonus ------- High Alert Combat Kills 627 Follower Combat Kills 535 Met Data Miner 300 Met Imprinter 300 Met Zhirov 300 Met Warlord at Base 500 MAIN.C Attacked Warlord 500 Met Warlord at Research 2000 Met MAIN.C 5000 Destroyed MAIN.C Shell 5000 Met Warlord at Command 2000 Friendly Fire -519 Cogmind --------- Core Integrity 0/1600 Matter 174/300 Energy 1264/1380 System Corruption 15% Temperature Warm (198) Movement Walking (105) Location -1/Command Parts ------- > --- POWER (2) -------- Zero-point Reactor Zero-point Reactor > --- PROPULSION (6) --- High-density Centrium Leg High-density Centrium Leg High-density Centrium Leg Experimental Biometal Leg Experimental Biometal Leg Experimental Biometal Leg > --- UTILITY (11) ----- Large Storage Unit Improved Energy Well Experimental Energy Well Experimental Targeting Computer Experimental Core Analyzer Improved Armor Integrity Analyzer Advanced Phase Shifter Centrium Medium Armor Plating Centrium Medium Armor Plating AEGIS Remote Shield > --- WEAPON (6) ------- Heavy Quantum Rifle Heavy Quantum Rifle Improved Matter Neutralizer Light Antimatter Cannon > --- INVENTORY (15) --- Singularity Reactor Experimental Biometal Medium Treads Experimental Biometal Leg Graviton Cannon Spear Peak State ------------ > --- POWER ------------ Zero-point Reactor Zero-point Reactor > --- PROPULSION ------- High-density Centrium Leg High-density Centrium Leg High-density Centrium Leg Experimental Biometal Leg Experimental Biometal Leg Experimental Biometal Leg > --- UTILITY ---------- Advanced Power Amplifier Large Storage Unit Improved Energy Well Improved Energy Well Experimental Terrain Scan Processor Experimental Weapon Cycler Heavy Regenerative Plating Graphene Brace Experimental System Purifier > --- WEAPON ----------- BFG-9k Vortex Edition > --- INVENTORY -------- Zero-point Reactor Singularity Reactor Experimental Biometal Medium Treads AEGIS Remote Shield Transdimensional Reconstructor Heavy Quantum Rifle Heavy Quantum Rifle Enhanced Nova Cannon Heavy Hardcell Cannon Graviton Cannon Spear [Rating: 245] Favorites ----------- Power Improved Deuterium Engine Engine Improved Deuterium Engine Power Core Light Neutrino Core Reactor Micro Antimatter Reactor Propulsion Light Treads Treads Light Treads Leg High-density Centrium Leg Hover Unit Aerolev Unit Flight Unit Cooled VTOL Module Utility Advanced Hacking Suite Device Improved Heat Sink Storage High-capacity Storage Unit Processor Enhanced Optical Array Hackware Advanced Hacking Suite Protection Light Armor Plating Artifact Spacefold Activator Weapon Greatsword Energy Gun Advanced Beam Rifle Energy Cannon Heavy Ion Cannon Ballistic Gun Assault Rifle Ballistic Cannon Light Cannon Launcher Precision Rocket Launcher Special Weapon RU-N14's Throwing Claymores v3 Impact Weapon Great Maul Slashing Weapon Greatsword Piercing Weapon Spear Build | -11 -10 -10 -10 -9 -8 -8 -7 -7 -7 -7 -7 -6 -6 -6 -6 -6 -6 -5 -5 -5 -5 -5 -4 -4 -4 -4 -4 -3 -3 -3 -2 -2 -2 -1 -1 ------- Run | Scr Mat Min Exi Min Mat Sto Fac Was Fac Low Zio Pro Fac Was Fac Low Dat Pro Fac Upp Upp War Pro Fac Upp Upp Zhi Pro Res Qua Res Tes Sec Acc Com Slots Evolved 18 | . . . . . 4 . 2 . . . . . 2 . . . . . 2 . . . . 2 . . . . 2 . 2 . . 2 . Power 1 | . . . . . . . . . . . . . . . . . . . 1 . . . . . . . . . . . . . . . . Propulsion 4 | . . . . . 1 . 1 . . . . . . . . . . . 1 . . . . 1 . . . . . . . . . . . Utility 9 | . . . . . 3 . 1 . . . . . 2 . . . . . . . . . . 1 . . . . 2 . . . . . . Weapon 4 | . . . . . . . . . . . . . . . . . . . . . . . . . . . . . . . 2 . . 2 . Parts Attached 340 | 6 14 3 . 5 40 20 21 2 5 . 6 2 14 . 8 3 2 11 34 . 5 11 4 8 4 2 8 . 3 13 9 14 4 . 59 Power 29 | 1 . . . 2 3 . 1 . . . . 1 . . . . . 1 6 . . . . 1 . . 4 . 1 1 . . . . 7 Engine 7 | 1 . . . 2 3 . 1 . . . . . . . . . . . . . . . . . . . . . . . . . . . . Core 10 | . . . . . . . . . . . . 1 . . . . . 1 6 . . . . . . . 2 . . . . . . . . Reactor 12 | . . . . . . . . . . . . . . . . . . . . . . . . 1 . . 2 . 1 1 . . . . 7 Propulsion 61 | 2 4 2 . 1 7 6 6 1 . . . . 1 . . . 1 . 5 . . 2 . 1 . . 3 . . 4 5 1 . . 9 Treads 20 | 2 4 2 . 1 7 4 . . . . . . . . . . . . . . . . . . . . . . . . . . . . . Leg 8 | . . . . . . . . . . . . . . . . . . . . . . . . . . . . . . . . . . . 8 Wheel . | . . . . . . . . . . . . . . . . . . . . . . . . . . . . . . . . . . . . Hover 1 | . . . . . . 1 . . . . . . . . . . . . . . . . . . . . . . . . . . . . . Flight 32 | . . . . . . 1 6 1 . . . . 1 . . . 1 . 5 . . 2 . 1 . . 3 . . 4 5 1 . . 1 Utility 162 | 1 5 1 . 1 15 3 12 1 2 . 4 1 10 . 8 3 1 4 17 . 5 5 2 6 3 2 1 . 2 4 4 11 3 . 25 Device 96 | . 2 . . . 12 3 4 1 . . 4 . 4 . 5 3 . 2 10 . 5 2 2 4 3 1 1 . 2 2 2 9 2 . 11 Storage 15 | 1 2 . . . 1 . . . . . . . 2 . . . 1 . . . . . . . . . . . . . 1 1 . . 6 Processor 17 | . . . . . . . 5 . . . . 1 2 . . . . . . . . 2 . . . 1 . . . 1 1 1 . . 3 Hackware 22 | . . . . . . . 3 . 2 . . . 2 . 3 . . 2 7 . . 1 . 2 . . . . . . . . . . . Protection 10 | . 1 1 . 1 2 . . . . . . . . . . . . . . . . . . . . . . . . 1 . . . . 4 Artifact 2 | . . . . . . . . . . . . . . . . . . . . . . . . . . . . . . . . . 1 . 1 Weapon 88 | 2 5 . . 1 15 11 2 . 3 . 2 . 3 . . . . 6 6 . . 4 2 . 1 . . . . 4 . 2 1 . 18 Energy Gun 15 | . . . . . . 8 . . 1 . . . . . . . . . . . . 1 . . . . . . . . . 1 . . 4 Energy Cannon 19 | . . . . 1 10 . . . . . . . . . . . . . . . . . . . . . . . . . . 1 1 . 6 Ballistic Gun 10 | 2 2 . . . 2 . . . . . . . . . . . . . . . . . . . . . . . . 2 . . . . 2 Ballistic Cannon 8 | . 3 . . . . . . . . . . . . . . . . . . . . . 1 . . . . . . . . . . . 4 Launcher 14 | . . . . . 3 3 . . . . 1 . 1 . . . . 3 1 . . . . . . . . . . . . . . . 2 Special Weapon 4 | . . . . . . . . . . . . . . . . . . . 1 . . 1 . . 1 . . . . 1 . . . . . Impact Weapon 1 | . . . . . . . 1 . . . . . . . . . . . . . . . . . . . . . . . . . . . . Slashing Weapon 16 | . . . . . . . 1 . 2 . 1 . 2 . . . . 3 4 . . 2 1 . . . . . . . . . . . . Piercing Weapon 1 | . . . . . . . . . . . . . . . . . . . . . . . . . . . . . . 1 . . . . . Special Melee Weapon . | . . . . . . . . . . . . . . . . . . . . . . . . . . . . . . . . . . . . Unidentified Prototypes 44 | . . . . . . 6 2 . . . 3 . . . . . 1 . . . . 6 . . . . 2 . . 1 2 6 1 . 14 Parts Lost 48 | . . . . 4 12 1 1 . 1 . . . . . . . 1 2 3 . . . . . 1 . . 3 1 . . . 1 . 17 Power 7 | . . . . 1 1 . . . . . . . . . . . . 1 . . . . . . . . . . 1 . . . . . 3 Propulsion 12 | . . . . 1 4 . 1 . . . . . . . . . 1 . 1 . . . . . . . . 1 . . . . . . 3 Utility 21 | . . . . 1 6 1 . . 1 . . . . . . . . . 2 . . . . . . . . 2 . . . . 1 . 7 Weapon 8 | . . . . 1 1 . . . . . . . . . . . . 1 . . . . . . 1 . . . . . . . . . 4 Highest Loss Streak 7 | . . . . 4 3 1 1 . 1 . . . . . . . 1 2 2 . . . . . 1 . . 3 1 . . . 1 . 7 To Critical Strikes . | . . . . . . . . . . . . . . . . . . . . . . . . . . . . . . . . . . . . Average Slot Usage (%) 91 | . 98 100 100 90 96 99 78 92 91 92 92 92 86 93 91 87 86 91 88 88 84 88 88 85 84 89 89 88 75 77 86 85 85 80 75 Engine 5 | . 14 14 14 10 9 9 7 7 7 7 7 1 . . . . . . . . . . . . . . . . . . . . . . . Core 1 | . . . . . . . . . . . . 5 6 6 6 6 6 5 6 5 5 5 5 5 5 5 4 5 2 . . . . . . Treads 12 | . 27 28 28 27 26 27 . . . . . . . . . . . . . . . . . . . . . . . . . . . . . Flight 14 | . . . . . . . 29 30 30 30 30 30 26 26 26 26 26 26 28 29 29 29 29 28 31 31 31 30 23 22 26 25 26 24 13 Device 12 | . 3 . . . 25 35 9 17 17 7 10 15 6 6 6 6 6 6 4 5 6 9 5 9 10 10 10 9 14 14 17 16 11 8 11 Storage 7 | . 14 14 14 14 9 9 . . . . . . 5 6 6 6 6 6 5 5 5 5 5 5 5 5 5 5 4 4 4 4 4 4 8 Processor 5 | . . . . . . . 22 12 7 7 7 7 11 13 13 13 13 13 11 11 11 11 11 10 10 10 10 9 4 4 7 8 13 12 6 Hackware 10 | . . . . . . . 1 15 20 30 26 23 21 26 25 21 20 24 22 23 17 18 23 21 21 21 21 21 19 19 17 17 17 16 10 Protection 4 | . 10 14 14 13 8 . . . . . . . . . . . . . . . . . . . . . . . . 1 . . . . 1 Energy Gun 1 | . . . . . . 17 . . . . . . . . . . . . . . . . . . . . . . . . . . . . . Energy Cannon 2 | . . . . 3 16 . . . . . . . . . . . . . . . . . . . . . . . . . . . . . 1 Ballistic Gun 2 | . 12 . . . 1 . . . . . . . . . . . . . . . . . . . . . . . . . 4 4 4 4 1 Ballistic Cannon 4 | . 15 28 28 20 . . . . . . . . . . . . . . . . . . . . . . . . . . . . . . 1 Slashing Weapon 2 | . . . . . . . 5 7 6 7 7 7 5 6 6 6 6 5 4 5 5 4 5 5 . . . . . . . . . . . Naked Turns . | . . . . . . . . . . . . . . . . . . . . . . . . . . . . . . . . . . . . Heaviest Build 155 | 14 54 55 55 55 74 69 17 21 21 16 21 21 21 21 21 50 21 21 29 24 53 25 27 37 30 30 34 30 36 36 44 46 43 42 155 Greatest Support 180 | 40 40 40 40 40 64 62 21 21 21 21 21 21 21 21 21 21 26 26 38 32 32 39 39 37 48 32 38 32 41 49 47 50 47 50 180 Greatest Overweight (x) 2 | 1 1 1 1 1 1 1 . . . . . . . . . 2 . . 1 . 1 . . . . . 1 . 1 1 . . . . 2 Average Overweight (x) . | . . 1 1 1 . . . . . . . . . . . . . . . . . . . . . . . . . . . . . . . Largest Inventory Capacity 20 | 8 20 20 20 20 20 20 20 5 5 5 5 5 10 10 10 10 10 10 10 10 10 10 10 10 10 10 10 10 10 10 15 15 15 15 15 Average Capacity 14 | 7 18 20 20 20 20 20 5 5 5 5 5 5 9 10 10 10 10 10 10 10 10 10 10 10 10 10 10 10 10 10 12 15 15 15 15 Most Carried 20 | 7 20 20 20 20 20 20 20 5 5 5 5 5 10 10 10 10 10 10 10 10 10 10 10 10 10 9 10 10 10 10 14 15 15 15 15 Average Carried 13 | 4 16 19 20 19 18 19 4 5 5 5 4 5 7 9 9 9 9 9 9 10 9 9 10 9 9 9 9 10 8 9 10 14 14 15 12 Final Capacity 20 | 8 20 20 20 20 20 20 5 5 5 5 5 5 10 10 10 10 10 10 10 10 10 10 10 10 10 10 10 10 10 10 15 15 15 15 15 Final Carried 20 | 6 20 20 20 19 17 20 5 5 5 5 5 5 10 10 10 10 9 9 10 10 9 10 10 10 9 9 10 10 10 10 13 15 15 15 7 Class Distribution -------------------- 36% | Mutant 14% | Hacker-Scout 10% | Hacker-Sprinter 6% | Wizard-Scout 6% | Scavenger-Mutant 5% | Wizard-Sprinter 4% | Wizard-Ninja 3% | Sprinter Dominant Class ---------------- Mutant | -10/Materials Mutant | -10/Mines Mutant | -10/Exiles Mutant | -9/Mines Mutant | -8/Materials Scavenger-Mutant | -8/Storage Sprinter | -7/Factory Hacker-Sprinter | -7/Waste Hacker-Sprinter | -7/Factory Hacker-Sprinter | -7/Lower Caves Hacker-Sprinter | -7/Zion Hacker-Sprinter | -6/Proximity Caves Hacker-Scout | -6/Factory Hacker-Scout | -6/Waste Hacker-Scout | -6/Factory Hacker-Scout | -6/Lower Caves Hacker-Scout | -6/Data Miner Hacker-Scout | -5/Proximity Caves Hacker-Scout | -5/Factory Hacker-Scout | -5/Upper Caves Hacker-Mutant | -5/Upper Caves Hacker-Ninja | -5/Warlord Wizard-Scout | -4/Proximity Caves Wizard-Ninja | -4/Factory Wizard-Scout | -4/Upper Caves Wizard-Scout | -4/Upper Caves Wizard-Scout | -4/Zhirov Wizard-Scout | -3/Proximity Caves Wizard-Sprinter | -3/Research Wizard-Sprinter | -3/Quarantine Wizard-Sprinter | -2/Research Wizard-Ninja | -2/Testing Wizard-Scout | -2/Section 7 Wizard-Scout | -1/Access Wizard-Sprinter | -1/Command Resources | -11 -10 -10 -10 -9 -8 -8 -7 -7 -7 -7 -7 -6 -6 -6 -6 -6 -6 -5 -5 -5 -5 -5 -4 -4 -4 -4 -4 -3 -3 -3 -2 -2 -2 -1 -1 ----------- Run | Scr Mat Min Exi Min Mat Sto Fac Was Fac Low Zio Pro Fac Was Fac Low Dat Pro Fac Upp Upp War Pro Fac Upp Upp Zhi Pro Res Qua Res Tes Sec Acc Com Matter Collected 6575 | 239 634 86 . 234 505 419 165 . 136 . 60 20 557 . . 29 . 279 485 15 568 50 140 . 72 28 . 72 . . 307 154 105 . 1216 Remotely . | . . . . . . . . . . . . . . . . . . . . . . . . . . . . . . . . . . . . Salvage Created 7745 | . 708 80 . 253 1494 1234 134 . 71 . . . 635 . . 29 . . 451 . 228 . 184 . . . . . . . 273 145 105 . 1721 Parts 356 | . 50 10 . 22 87 59 14 . 8 . . . 26 . . 3 . . 29 . 2 . 1 . . . . . . . 11 4 6 . 24 Haulers Intercepted 11 | . 2 . . . 2 2 2 . . . . . . . . . . . 1 . . . . . . . . . . . 2 . . . . Recyclers Shooed 11 | . 2 . . . 4 . . . . . . . . . . . . . 2 . . . . . . . . . . . . 1 . . 2 Parts Field Recycled . | . . . . . . . . . . . . . . . . . . . . . . . . . . . . . . . . . . . . Retrieved Matter . | . . . . . . . . . . . . . . . . . . . . . . . . . . . . . . . . . . . . Parts Self-Destructed 30 | . . . . . . . . . . . . 6 . . . 12 . . . . . . . . . 12 . . . . . . . . . Prevented 2 | . . . . . . . . . . . . . . . . . . . . . . . . . 2 . . . . . . . . . . Kills | -11 -10 -10 -10 -9 -8 -8 -7 -7 -7 -7 -7 -6 -6 -6 -6 -6 -6 -5 -5 -5 -5 -5 -4 -4 -4 -4 -4 -3 -3 -3 -2 -2 -2 -1 -1 ------- Run | Scr Mat Min Exi Min Mat Sto Fac Was Fac Low Zio Pro Fac Was Fac Low Dat Pro Fac Upp Upp War Pro Fac Upp Upp Zhi Pro Res Qua Res Tes Sec Acc Com Combat Hostiles Destroyed 121 | . 15 5 . 13 36 18 . . . . . . 1 . . . . . 6 . . . . . . . . . . . 1 . 1 . 25 Melee 2 | . . . . . . . . . . . . . 1 . . . . . 1 . . . . . . . . . . . . . . . . Guns 31 | . 10 . . . 1 15 . . . . . . . . . . . . . . . . . . . . . . . . 1 . 1 . 3 Cannons 55 | . 5 5 . 11 20 . . . . . . . . . . . . . . . . . . . . . . . . . . . . . 14 AOE 29 | . . . . 2 14 2 . . . . . . . . . . . . 5 . . . . . . . . . . . . . . . 6 Classes Destroyed 18 | . 7 . . 1 4 2 1 . . . . . 1 . . 1 . . . . . . . . . . . . . . . . . . 1 Worker 13 | . 2 . . . 4 2 . . 1 . . . 1 . . . . . 2 . . . . . . . . . . . . . . . 1 Builder 6 | . . . . . 3 . . . . . . . . . . . . . 3 . . . . . . . . . . . . . . . . Tunneler 1 | . . . . . . . 1 . . . . . . . . . . . . . . . . . . . . . . . . . . . . Hauler 11 | . 2 . . . 2 2 2 . . . . . . . . . . . 1 . . . . . . . . . . . 2 . . . . Recycler 10 | . 1 . . 1 . 1 . . . . . . 4 . . . . . 1 . . . . . . . . . . . . 1 . . 1 Minesweeper 1 | . . . . . . . . . . . . . . . . 1 . . . . . . . . . . . . . . . . . . . Mechanic 1 | . . . . . . 1 . . . . . . . . . . . . . . . . . . . . . . . . . . . . . Operator 12 | . 2 . . . 1 2 2 . 2 . . . 1 . . . . . 2 . . . . . . . . . . . . . . . . Watcher 3 | . 1 . . . . . . . . . . . 1 . . . . . . . . . . . . . . . . . . . . . 1 Swarmer 35 | . 6 3 . 9 8 . . . . . . . . . . . . . 5 . . . . . . . . . . . . . . . 4 Grunt 48 | . 9 2 . 3 20 10 . . . . . . . . . . . . 1 . . . . . . . . . . . . . . . 3 Brawler 5 | . . . . 1 2 2 . . . . . . . . . . . . . . . . . . . . . . . . . . . . . Duelist 3 | . . . . . 3 . . . . . . . . . . . . . . . . . . . . . . . . . . . . . . Protector 2 | . . . . . 1 1 . . . . . . . . . . . . . . . . . . . . . . . . . . . . . Sentry 9 | . . . . . 2 5 . . . . . . . . . . . . . . . . . . . . . . . . 1 . 1 . . Hunter 1 | . . . . . . 1 . . . . . . . . . . . . . . . . . . . . . . . . . . . . . Programmer 1 | . . . . . . . . . . . . . 1 . . . . . . . . . . . . . . . . . . . . . . M Guard 1 | . . . . . . . . . . . . . . . . . . . . . . . . . . . . . . . . . . . 1 Enhanced Q-Series 15 | . . . . . . . . . . . . . . . . . . . . . . . . . . . . . . . . . . . 15 Combat Programmer 1 | . . . . . . . . . . . . . . . . . . . . . . . . . . . . . . . . . . . 1 Packrat 5 | . . . . . . . . . . . . . . . . . . . . . 3 . 2 . . . . . . . . . . . . Best Kill Streak 9 | . 5 3 . 8 8 6 1 . 1 . . . 2 . . 1 . . 9 . . . . . . . . . . . 1 1 1 . 6 Combat Bots Only 7 | . 5 3 . 7 6 4 . . . . . . 1 . . . . . 5 . . . . . . . . . . . 1 . 1 . 5 Max Kills in Single Turn 5 | . 1 1 . 2 5 3 1 . 1 . . . 1 . . 1 . . 3 . 1 . 1 . . . . . . . 1 1 1 . 3 Gunslinging . | . . . . . . . . . . . . . . . . . . . . . . . . . . . . . . . . . . . . Exploded 4 | . . . . 2 4 2 . . . . . . . . . . . . 2 . . . . . . . . . . . . . . . 2 Melee 1 | . . . . . . . . . . . . . 1 . . . . . 1 . . . . . . . . . . . . . . . . Uniques/NPCs Destroyed 1 | . . . . . . . . . . . . . . . . . . . . . . . . . . . . . . . . . . . 1 MAIN.C Shell (-1/Command) Combat | -11 -10 -10 -10 -9 -8 -8 -7 -7 -7 -7 -7 -6 -6 -6 -6 -6 -6 -5 -5 -5 -5 -5 -4 -4 -4 -4 -4 -3 -3 -3 -2 -2 -2 -1 -1 -------- Run | Scr Mat Min Exi Min Mat Sto Fac Was Fac Low Zio Pro Fac Was Fac Low Dat Pro Fac Upp Upp War Pro Fac Upp Upp Zhi Pro Res Qua Res Tes Sec Acc Com Damage Taken 13840 | . 307 94 . 762 2186 743 121 . 22 . . 14 172 . 43 . 91 364 435 36 . 75 . 117 90 52 . 345 169 41 29 131 42 62 7297 Core 2668 | . 65 14 . 96 281 47 46 . . . . 14 21 . 26 . 48 143 88 . . . . 81 . 10 . 48 18 . . . . 62 1560 Absorbed by Shields 2378 | . . . . . 79 . . . . . . . . . . . . 18 . . . . . . . . . . 24 . . . . . 2257 Regen/Repaired (Parts) 1109 | . 275 . . . . . . . . . 75 . 90 . . . . . 224 . . . . . . . . . . 66 . . . . 379 Core Remaining (%) 78 | 100 . . . 30 . 40 . . . . . 91 . . . . . 72 . . . . 91 . . . . 87 . 98 . . 100 . . Volleys Fired 406 | . 68 7 . 29 116 61 . . . . . . 1 . . . . 4 7 . . . . . 1 . . 2 . 2 4 4 15 . 85 Largest 6 | . 2 2 . 2 2 2 . . . . . . 1 . . . . 1 1 . . . . . 1 . . 1 . 1 1 1 1 . 6 Hottest 491 | . 70 70 . 70 145 122 . . . . . . 43 . . . . 43 43 . . . . . . . . . . . 40 40 120 . 491 Shots Fired 775 | . 116 14 . 51 207 122 . . . . . . 1 . . . . 4 7 . . . . . 1 . . 2 . 2 4 4 14 . 226 Gun 317 | . 102 . . . 6 119 . . . . . . . . . . . . . . . . . . . . . . . . 4 4 11 . 71 Cannon 425 | . 14 14 . 51 192 2 . . . . . . . . . . . . . . . . . . . . . . . . . . 3 . 149 Launcher 28 | . . . . . 9 1 . . . . . . 1 . . . . 4 7 . . . . . . . . . . . . . . . 6 Special 5 | . . . . . . . . . . . . . . . . . . . . . . . . . 1 . . 2 . 2 . . . . . Kinetic 287 | . 116 14 . 51 6 . . . . . . . . . . . . . . . . . . . . . . . . . 4 4 11 . 81 Thermal 426 | . . . . . 192 121 . . . . . . . . . . . . . . . . . . . . . . . . . . 3 . 110 Explosive 33 | . . . . . 9 1 . . . . . . 1 . . . . 4 7 . . . . . 1 . . 2 . 2 . . . . 6 Electromagnetic . | . . . . . . . . . . . . . . . . . . . . . . . . . . . . . . . . . . . . Entropic 29 | . . . . . . . . . . . . . . . . . . . . . . . . . . . . . . . . . . . 29 Robot Hit Streak 19 | . 15 5 . 6 10 19 . . . . . . . . . . . . 4 . . . . . . . . . . . . 3 2 . 16 Robot Miss Streak 5 | . 4 2 . 5 4 3 . . . . . . . . . . . . 1 . . . . . . . . . . . . . 2 . 3 Penetration Max 1 | . . . . . . . . . . . . . . . . . . . . . . . . . . . . . . . . . . . 1 Secondary Targets 3 | . . . . . . 3 . . . . . . . . . . . . . . . . . . . . . . . . . . . . . Max Gunslinging Chain 1 | . . . . . . 1 . . . . . . . . . . . . . . . . . . . . . . . . . . . . . Shots Hit Robots 552 | . 75 6 . 27 131 82 9 . 3 . . . 13 . . 1 1 . 16 . 3 . 2 . . . . . . 1 3 4 4 . 171 Core Hits 268 | . 34 6 . 14 69 39 2 . 1 . . . 6 . . . . . 18 . 2 . 1 . . . . . . 1 3 2 1 . 69 Critical Kills 7 | . 1 . . . 1 . . . . . . . . . . . . . . . . . . . . . . . . . 1 . 1 . 3 Critical Parts Destroyed 2 | . . . . . . . . . . . . . . . . . . . . . . . . . . . . . . . . 1 1 . . Critical Strikes 28 | . 1 . . 3 1 11 . . . . . . . . . . . . . . . . . . . . . . . . 1 1 2 . 8 Burn 11 | . . . . . . 11 . . . . . . . . . . . . . . . . . . . . . . . . . . . . . Meltdown 3 | . . . . . 1 . . . . . . . . . . . . . . . . . . . . . . . . . . . . . 2 Destroy 6 | . 1 . . . . . . . . . . . . . . . . . . . . . . . . . . . . . 1 1 2 . 1 Blast 4 | . . . . 3 . . . . . . . . . . . . . . . . . . . . . . . . . . . . . . 1 Impale 2 | . . . . . . . . . . . . . . . . . . . . . . . . . . . . . . . . . . . 2 Sunder 2 | . . . . . . . . . . . . . . . . . . . . . . . . . . . . . . . . . . . 2 Melee Attacks 260 | . . . . . . . 22 . 10 . 8 6 57 . 2 1 1 6 60 . 6 . 10 . . . . . . 7 3 19 12 4 26 Impact 9 | . . . . . . . 9 . . . . . . . . . . . . . . . . . . . . . . . . . . . . Slashing 180 | . . . . . . . 13 . 10 . 8 6 57 . 2 1 1 6 60 . 6 . 10 . . . . . . . . . . . . Piercing 71 | . . . . . . . . . . . . . . . . . . . . . . . . . . . . . . 7 3 19 12 4 26 Sneak Attacks 28 | . . . . . . . 4 . 2 . . . 6 . . 1 1 . 5 . 3 . 2 . . . . . . . 3 1 . . . Combat Hostiles . | . . . . . . . . . . . . . . . . . . . . . . . . . . . . . . . . . . . . Follow-up Attacks . | . . . . . . . . . . . . . . . . . . . . . . . . . . . . . . . . . . . . Damage Inflicted 34081 | . 1064 132 . 714 4867 1850 723 . 318 . . . 1168 . . 131 97 . 2470 . 321 . 229 . . . . . . 32 230 132 18 . 19585 Guns 4382 | . 852 . . . 56 1595 . . . . . . . . . . . . . . . . . . . . . . . . 8 17 18 . 1836 Cannons 20062 | . 167 132 . 593 3424 . . . . . . . . . . . . . . . . . . . . . . . . . . . . . 15746 Explosions 4504 | . . . . 121 1346 225 . . . . . . . . . . . . 1451 . . . . . . . . . . . . . . . 1361 Melee 5017 | . . . . . . . 723 . 318 . . . 1168 . . 131 97 . 1019 . 321 . 229 . . . . . . 32 222 115 . . 642 Ramming 116 | . 45 . . . 41 30 . . . . . . . . . . . . . . . . . . . . . . . . . . . . . Kinetic 4311 | . 1019 132 . 593 56 . . . . . . . . . . . . . . . . . . . . . . . . . 8 17 18 . 2468 Thermal 8977 | . . . . 121 3424 1595 . . . . . . . . . . . . 520 . . . . . . . . . . . . . . . 3317 Explosive 3863 | . . . . . 1346 225 . . . . . . . . . . . . 931 . . . . . . . . . . . . . . . 1361 Electromagnetic . | . . . . . . . . . . . . . . . . . . . . . . . . . . . . . . . . . . . . Impact 518 | . . . . . . . 518 . . . . . . . . . . . . . . . . . . . . . . . . . . . . Slashing 3488 | . . . . . . . 205 . 318 . . . 1168 . . 131 97 . 1019 . 321 . 229 . . . . . . . . . . . . Piercing 1011 | . . . . . . . . . . . . . . . . . . . . . . . . . . . . . . 32 222 115 . . 642 Entropic 11797 | . . . . . . . . . . . . . . . . . . . . . . . . . . . . . . . . . . . 11797 Highest Corruption 15 | . . . . . 3 4 2 7 7 7 7 . 2 2 2 2 2 2 . . . . . . . . . 8 1 1 . 1 1 . 15 Average Corruption 3 | . . . . . 3 3 1 5 7 7 7 . 1 2 2 2 2 2 . . . . . . . . . 8 1 1 . 1 1 . 8 Corruption Purged 12 | . . . . . . . . . . . . . . . . . . . . . . . . . . . . . . . . . . . 12 Corruption Blocked . | . . . . . . . . . . . . . . . . . . . . . . . . . . . . . . . . . . . . Effects 88 | . . . . . 15 24 5 2 9 . . . 4 2 . . 1 5 . . . . . . . . . . . 2 . . 2 . 17 Message Errors 20 | . . . . . 2 5 1 1 4 . . . . 1 . . . 1 . . . . . . . . . . . 1 . . . . 4 Matter Fused 16 | . . . . . 2 4 2 . 2 . . . . . . . . 1 . . . . . . . . . . . . . . . . 5 Heat Flow Errors 13 | . . . . . 2 2 . . . . . . 3 . . . 1 2 . . . . . . . . . . . . . . . . 3 Energy Discharges 10 | . . . . . 2 6 1 . 1 . . . . . . . . . . . . . . . . . . . . . . . . . . Parts Rejected 4 | . . . . . 1 . . 1 . . . . . . . . . . . . . . . . . . . . . 1 . . . . 1 Data Loss (minor) 11 | . . . . . 6 2 . . 1 . . . . . . . . . . . . . . . . . . . . . . . 1 . 1 Data Loss (major) 4 | . . . . . . 2 1 . . . . . . 1 . . . . . . . . . . . . . . . . . . . . . Misfires 3 | . . . . . . 3 . . . . . . . . . . . . . . . . . . . . . . . . . . . . . Alerts 3 | . . . . . . . . . 1 . . . 1 . . . . 1 . . . . . . . . . . . . . . . . . Weapon Failures 4 | . . . . . . . . . . . . . . . . . . . . . . . . . . . . . . . . . 1 . 3 Overload Shots . | . . . . . . . . . . . . . . . . . . . . . . . . . . . . . . . . . . . . Overflow Damage 4902 | . . . . 46 37 . 228 . 186 . . . 352 . . 91 . 9 259 . 81 . 120 . . . . . . . 46 . . . 3447 Projectiles 3293 | . . . . 7 11 . . . . . . . . . . . . . . . . . . . . . . . . . . . . . 3275 Explosions 227 | . . . . 39 26 . . . . . . . . . . . . 9 65 . . . . . . . . . . . . . . . 88 Melee 1382 | . . . . . . . 228 . 186 . . . 352 . . 91 . . 194 . 81 . 120 . . . . . . . 46 . . . 84 Knockbacks 33 | . 2 . . 6 . 1 1 . . . . . . . . . . . . . . . . . . . . . . . . . . . 23 Impact 2 | . . . . . . 1 1 . . . . . . . . . . . . . . . . . . . . . . . . . . . . Kinetic 30 | . 2 . . 6 . . . . . . . . . . . . . . . . . . . . . . . . . . . . . . 22 Secondary 1 | . . . . . . . . . . . . . . . . . . . . . . . . . . . . . . . . . . . 1 Self-Inflicted Damage 348 | . . . . 49 129 . . . . . . . 4 . . . . 107 59 . . . . . . . . . . . . . . . . Shots 9 | . . . . 1 3 . . . . . . . 1 . . . . 2 2 . . . . . . . . . . . . . . . . Rammed 22 | . 11 . . . 7 4 . . . . . . . . . . . . . . . . . . . . . . . . . . . . . Targets Rammed 24 | . 11 . . . 8 5 . . . . . . . . . . . . . . . . . . . . . . . . . . . . . Kicked . | . . . . . . . . . . . . . . . . . . . . . . . . . . . . . . . . . . . . Crushed 2 | . . . . . 1 1 . . . . . . . . . . . . . . . . . . . . . . . . . . . . . Highest Temperature 337 | . 108 72 . 255 272 165 . . . . . . 209 . . . 178 259 64 . 113 85 22 16 337 8 . . 259 136 177 223 210 76 198 Average Temperature 71 | . 46 37 . 82 50 70 . . . . . . 91 . . . 73 84 19 . 70 48 17 8 124 6 . . 128 28 51 44 38 22 111 Received Heat Transfer 2351 | . 90 18 . 153 910 306 . . . . . . . . 9 . . 63 108 9 . . . . . 12 . . 9 . 9 18 9 . 628 Effects 2 | . . . . . . . . . . . . . . . . . . . . . . . . . . . . . . . . 2 . . . Interference 2 | . . . . . . . . . . . . . . . . . . . . . . . . . . . . . . . . 2 . . . Siege Activations . | . . . . . . . . . . . . . . . . . . . . . . . . . . . . . . . . . . . . Robots Corrupted . | . . . . . . . . . . . . . . . . . . . . . . . . . . . . . . . . . . . . Combat Hostiles . | . . . . . . . . . . . . . . . . . . . . . . . . . . . . . . . . . . . . Parts Fried 1 | . . . . . . . 1 . . . . . . . . . . . . . . . . . . . . . . . . . . . . Impact Corruptions 4 | . . . . . . . 4 . . . . . . . . . . . . . . . . . . . . . . . . . . . . Robots Melted 4 | . . . . . 1 1 . . . . . . . . . . . . . . . . . . . . . . . . . . . . 2 Combat Hostiles 4 | . . . . . 1 1 . . . . . . . . . . . . . . . . . . . . . . . . . . . . 2 Parts Melted 26 | . . . . . 7 14 . . . . . . . . . . . . . . . . . . . . . . . . . . . . 5 Heat Transferred 12113 | . . . . 150 4717 3853 . . . . . . . . . . . . 350 . . . . . . . . . . . . . . . 3043 Parts Sabotaged . | . . . . . . . . . . . . . . . . . . . . . . . . . . . . . . . . . . . . Parts Stolen . | . . . . . . . . . . . . . . . . . . . . . . . . . . . . . . . . . . . . Parts Stripped . | . . . . . . . . . . . . . . . . . . . . . . . . . . . . . . . . . . . . Power Chain Reactions . | . . . . . . . . . . . . . . . . . . . . . . . . . . . . . . . . . . . . Missiles Intercepted . | . . . . . . . . . . . . . . . . . . . . . . . . . . . . . . . . . . . . Alert | -11 -10 -10 -10 -9 -8 -8 -7 -7 -7 -7 -7 -6 -6 -6 -6 -6 -6 -5 -5 -5 -5 -5 -4 -4 -4 -4 -4 -3 -3 -3 -2 -2 -2 -1 -1 ------- Run | Scr Mat Min Exi Min Mat Sto Fac Was Fac Low Zio Pro Fac Was Fac Low Dat Pro Fac Upp Upp War Pro Fac Upp Upp Zhi Pro Res Qua Res Tes Sec Acc Com Peak Influence 1082 | . 226 162 . 431 924 1082 654 169 232 . . . 368 123 130 . . . 408 . . . . 87 . . . . 60 259 279 276 415 327 523 Initial 492 | . . 42 . . 167 390 492 139 104 . . . 31 63 86 . . . 46 . . . . 9 . . . . . 33 145 156 133 248 208 Average 231 | . 60 112 . 279 254 717 498 156 167 . . . 200 102 97 . . . 106 . . . . 29 . . . . 6 171 222 83 264 291 283 Maximum Alert Level 3 | . 1 . . 2 3 3 2 . 1 . . . 1 . . . . . 2 . . . . . . . . . . 1 1 1 2 1 2 Low Security (%) 63 | 100 95 100 . 22 65 . . 100 83 . . . 52 100 100 . . . 88 . . . . 100 . . . . 100 84 15 82 31 . 52 Level 1 17 | . 4 . . 45 11 1 36 . 16 . . . 47 . . . . . 9 . . . . . . . . . . 15 84 17 65 100 24 Level 2 12 | . . . . 32 7 49 64 . . . . . . . . . . . 1 . . . . . . . . . . . . . 3 . 22 Level 3 7 | . . . . . 15 48 . . . . . . . . . . . . . . . . . . . . . . . . . . . . . Level 4 . | . . . . . . . . . . . . . . . . . . . . . . . . . . . . . . . . . . . . Level 5 . | . . . . . . . . . . . . . . . . . . . . . . . . . . . . . . . . . . . . High Security . | . . . . . . . . . . . . . . . . . . . . . . . . . . . . . . . . . . . . Max Security . | . . . . . . . . . . . . . . . . . . . . . . . . . . . . . . . . . . . . Squads Dispatched 54 | . 3 1 . . 9 5 4 . 1 . . . 5 . 2 . . . 8 . . . . 2 . . . . 1 1 1 7 . . 4 Investigation 25 | . 2 1 . . 1 . 3 . 1 . . . 3 . 2 . . . 4 . . . . 1 . . . . 1 1 1 4 . . . Extermination 6 | . . . . . . . . . . . . . . . . . . . 3 . . . . . . . . . . . . 1 . . 2 Reinforcement 14 | . 1 . . . 4 2 . . . . . . 2 . . . . . 1 . . . . 1 . . . . . . . 2 . . 1 Assault 5 | . . . . . 1 3 . . . . . . . . . . . . . . . . . . . . . . . . . . . . 1 Garrison 4 | . . . . . 3 . 1 . . . . . . . . . . . . . . . . . . . . . . . . . . . . Intercept . | . . . . . . . . . . . . . . . . . . . . . . . . . . . . . . . . . . . . Searches Triggered 1 | . . . . . . . . . . . . . . . . . . . . . . . . . . . . . . . . . . . 1 Construction Impeded 2 | . . . . . 2 . . . . . . . . . . . . . . . . . . . . . . . . . . . . . . Haulers Reinforced . | . . . . . . . . . . . . . . . . . . . . . . . . . . . . . . . . . . . . Active Scanning Responses . | . . . . . . . . . . . . . . . . . . . . . . . . . . . . . . . . . . . . Cargo Convoy Interrupts . | . . . . . . . . . . . . . . . . . . . . . . . . . . . . . . . . . . . . Stealth | -11 -10 -10 -10 -9 -8 -8 -7 -7 -7 -7 -7 -6 -6 -6 -6 -6 -6 -5 -5 -5 -5 -5 -4 -4 -4 -4 -4 -3 -3 -3 -2 -2 -2 -1 -1 --------- Run | Scr Mat Min Exi Min Mat Sto Fac Was Fac Low Zio Pro Fac Was Fac Low Dat Pro Fac Upp Upp War Pro Fac Upp Upp Zhi Pro Res Qua Res Tes Sec Acc Com Distress Signals 49 | . 2 . . . 5 2 1 . . . . . 1 . . . . 19 3 . . . . 1 . . . . . . 2 3 . . 10 Communications Jammed 9 | . . . . . . . . . . . . . . . . . . . . . . . . . . . . . . . . . . . 9 Distress Signals 9 | . . . . . . . . . . . . . . . . . . . . . . . . . . . . . . . . . . . 9 Times Spotted 398 | . 33 4 . 24 55 41 9 6 5 . . 3 24 5 4 1 4 9 24 3 6 4 1 7 10 3 . 1 4 6 5 21 10 1 65 Peak Tracking Total 13 | . 6 2 . 9 8 6 4 6 2 . . 4 5 5 4 1 4 9 8 3 13 4 1 5 10 3 . 2 4 3 5 11 7 2 8 Tactical Retreats 45 | . 1 . . 6 7 2 5 . 1 . . . 7 . . 1 . 1 4 . 1 . 1 1 1 . . . . . . 4 1 . 1 Traps | -11 -10 -10 -10 -9 -8 -8 -7 -7 -7 -7 -7 -6 -6 -6 -6 -6 -6 -5 -5 -5 -5 -5 -4 -4 -4 -4 -4 -3 -3 -3 -2 -2 -2 -1 -1 ------- Run | Scr Mat Min Exi Min Mat Sto Fac Was Fac Low Zio Pro Fac Was Fac Low Dat Pro Fac Upp Upp War Pro Fac Upp Upp Zhi Pro Res Qua Res Tes Sec Acc Com Traps Triggered 12 | . . . . . . 2 4 . . . . . 3 . . . . 1 1 . . . . . . . . . 1 . . . . . . Indirectly . | . . . . . . . . . . . . . . . . . . . . . . . . . . . . . . . . . . . . Trap Hack Attempts . | . . . . . . . . . . . . . . . . . . . . . . . . . . . . . . . . . . . . Triggered . | . . . . . . . . . . . . . . . . . . . . . . . . . . . . . . . . . . . . Disarmed . | . . . . . . . . . . . . . . . . . . . . . . . . . . . . . . . . . . . . Reprogrammed . | . . . . . . . . . . . . . . . . . . . . . . . . . . . . . . . . . . . . Reused 5 | . . . . . . . . . . . . . 2 . . 1 . . 1 . . . 1 . . . . . . . . . . . . Traps Extracted 1 | . . . . . . . . . . . . . . . . . . . . . . 1 . . . . . . . . . . . . . Installed 6 | . . . . . . . . . . . . . 3 . . 1 . . 1 . . . 1 . . . . . . . . . . . . Triggered 18 | . . . . . . . . . . . . . 2 . . 1 . . 1 . . 7 1 . 6 . . . . . . . . . . Fabricated Traps 11 | . . . . . . . . . . . . . 3 . . 1 . 1 . . 6 . . . . . . . . . . . . . . Most Traps Carried 7 | . . . . . . . . . . . . . 1 . . . . 1 1 . 6 7 7 6 6 6 6 . . . . . . . . Exploded 1 | . . . . . . . . . . . . . 1 . . . . . . . . . . . . . . . . . . . . . . Machines | -11 -10 -10 -10 -9 -8 -8 -7 -7 -7 -7 -7 -6 -6 -6 -6 -6 -6 -5 -5 -5 -5 -5 -4 -4 -4 -4 -4 -3 -3 -3 -2 -2 -2 -1 -1 ---------- Run | Scr Mat Min Exi Min Mat Sto Fac Was Fac Low Zio Pro Fac Was Fac Low Dat Pro Fac Upp Upp War Pro Fac Upp Upp Zhi Pro Res Qua Res Tes Sec Acc Com Machines Disabled 27 | . . . . 1 5 3 . . . . . . . . . . . . 4 . . . . . . . . . . 5 . 5 3 . 1 Max in Single Turn 2 | . . . . 1 2 1 . . . . . . . . . . . . 2 . . . . . . . . . . 1 . 1 1 . 1 Garrison Access 8 | . . . . . 1 1 . . . . . . 2 . 1 . . . 1 . . . . . . . . . . . . 1 1 . . Machines Sabotaged . | . . . . . . . . . . . . . . . . . . . . . . . . . . . . . . . . . . . . Garrisons Compromised . | . . . . . . . . . . . . . . . . . . . . . . . . . . . . . . . . . . . . Overloaded Fab Kills . | . . . . . . . . . . . . . . . . . . . . . . . . . . . . . . . . . . . . Hacking | -11 -10 -10 -10 -9 -8 -8 -7 -7 -7 -7 -7 -6 -6 -6 -6 -6 -6 -5 -5 -5 -5 -5 -4 -4 -4 -4 -4 -3 -3 -3 -2 -2 -2 -1 -1 --------- Run | Scr Mat Min Exi Min Mat Sto Fac Was Fac Low Zio Pro Fac Was Fac Low Dat Pro Fac Upp Upp War Pro Fac Upp Upp Zhi Pro Res Qua Res Tes Sec Acc Com Machines Accessed 134 | . 10 1 4 . 7 7 9 . 5 . . . 13 . 5 . 4 . 21 . 1 6 . 5 . . 4 . 1 5 2 10 6 3 5 Terminals 69 | . 7 . . . 6 5 4 . 4 . . . 5 . . . . . 11 . 1 . . 3 . . . . . 4 . 7 4 3 5 Fabricators 18 | . . . . . . . 3 . . . . . 3 . 2 . . . 4 . . . . 2 . . . . 1 . 1 2 . . . Repair Stations 10 | . 1 . . . . . 2 . . . . . 2 . 2 . . . 2 . . . . . . . . . . 1 . . . . . Recycling Units 4 | . 2 . . . . 1 . . 1 . . . . . . . . . . . . . . . . . . . . . . . . . . Scanalyzers 6 | . . . . . . . . . . . . . 1 . . . . . 3 . . . . . . . . . . . 1 . 1 . . Garrison Access 8 | . . . . . 1 1 . . . . . . 2 . 1 . . . 1 . . . . . . . . . . . . 1 1 . . Total Hacks 465 | . 43 1 4 . 19 15 20 . 18 . . . 41 . 14 . 29 . 80 . 3 14 . 25 . . 16 . 2 20 8 56 19 8 10 Successful 327 | . 33 1 4 . 7 7 8 . 7 . . . 26 . 9 . 29 . 64 . 3 14 . 21 . . 16 . 2 11 7 38 13 4 3 Failed 134 | . 9 . . . 12 8 12 . 11 . . . 14 . 5 . . . 15 . . . . 4 . . . . . 9 1 17 6 4 7 Catastrophic 23 | . 1 . . . 2 1 5 . 3 . . . . . . . . . 1 . . . . 1 . . . . . 3 . 2 2 1 1 Database Lockouts 4 | . 1 . . . . . . . . . . . 1 . . . . . 1 . . . . . . . . . . . . 1 . . . Manual 196 | . 25 . . . 6 4 4 . 15 . . . 15 . 4 . . . 34 . . 1 . 14 . . . . 1 7 . 46 11 3 6 Terminals 255 | . 30 . . . 17 10 8 . 14 . . . 22 . . . . . 41 . 3 . . 12 . . . . . 15 . 48 17 8 10 Fabricators 63 | . . . . . . . 9 . . . . . 6 . 8 . . . 16 . . . . 13 . . . . 2 . 2 7 . . . Repair Stations 39 | . 11 . . . . . 3 . . . . . 7 . 5 . . . 8 . . . . . . . . . . 5 . . . . . Recycling Units 10 | . 2 . . . . 4 . . 4 . . . . . . . . . . . . . . . . . . . . . . . . . . Scanalyzers 23 | . . . . . . . . . . . . . 2 . . . . . 14 . . . . . . . . . . . 6 . 1 . . Garrison Access 11 | . . . . . 2 1 . . . . . . 4 . 1 . . . 1 . . . . . . . . . . . . 1 1 . . Terminal Hacks 177 | . 13 1 4 . 4 4 1 . 3 . . . 8 . . . 29 . 20 . 3 14 . 6 . . 16 . . 7 . 28 9 4 3 Record 30 | . . . 4 . . . . . . . . . . . . . 11 . . . 3 7 . . . . 5 . . . . . . . . Part Schematic 25 | . 2 . . . . 1 . . . . . . 2 . . . 9 . 5 . . . . 2 . . 3 . . . . 1 . . . Robot Schematic 6 | . . . . . . . . . . . . . . . . . 6 . . . . . . . . . . . . . . . . . . Robot Analysis 12 | . 4 . . . . . . . . . . . . . . . . . 1 . . . . . . . 4 . . . . . 3 . . Prototype ID Bank 39 | . 1 . . . 3 . . . 1 . . . . . . . 3 . 1 . . 5 . 1 . . 4 . . 1 . 17 2 . . Open Door 7 | . . 1 . . . 2 . . . . . . . . . . . . . . . 2 . . . . . . . . . . . 1 1 Level Access Points 3 | . . . . . . . . . . . . . . . . . . . . . . . . . . . . . . 2 . . 1 . . Branch Access Points 4 | . . . . . 1 . . . . . . . . . . . . . 1 . . . . . . . . . . 1 . . . 1 . Machine Index 1 | . . . . . . . . . . . . . . . . . . . . . . . . . . . . . . . . . . 1 . Terminal Index 4 | . . . . . . . . . 1 . . . . . . . . . 1 . . . . 1 . . . . . . . . . . 1 Fabricator Index 4 | . . . . . . . . . . . . . 1 . . . . . 1 . . . . 1 . . . . . . . 1 . . . Repair Station Index 1 | . . . . . . . . . . . . . . . . . . . 1 . . . . . . . . . . . . . . . . Recycling Unit Index 1 | . 1 . . . . . . . . . . . . . . . . . . . . . . . . . . . . . . . . . . Alert Level 8 | . 1 . . . . 1 . . 1 . . . 1 . . . . . 2 . . . . . . . . . . . . 2 . . . Unreport Threat 9 | . 1 . . . . . 1 . . . . . 1 . . . . . 3 . . . . 1 . . . . . . . 2 . . . Locate Traps 8 | . 3 . . . . . . . . . . . 2 . . . . . 2 . . . . . . . . . . 1 . . . . . Patrol Status 2 | . . . . . . . . . . . . . . . . . . . . . . . . . . . . . . . . 1 1 . . Recall Investigation 2 | . . . . . . . . . . . . . . . . . . . . . . . . . . . . . . . . 2 . . . Recall Extermination 2 | . . . . . . . . . . . . . . . . . . . 2 . . . . . . . . . . . . . . . . Hauler Manifests 2 | . . . . . . . . . . . . . . . . . . . . . . . . . . . . . . 1 . . 1 . . Zone Layout 6 | . . . . . . . . . . . . . 1 . . . . . . . . . . . . . . . . 1 . 2 1 1 . Disengage Seal 1 | . . . . . . . . . . . . . . . . . . . . . . . . . . . . . . . . . . . 1 Fabricator Hacks 35 | . . . . . . . 4 . . . . . 4 . 4 . . . 9 . . . . 7 . . . . 1 . 2 4 . . . Network Status 2 | . . . . . . . . . . . . . . . . . . . . . . . . 2 . . . . . . . . . . . Load Schematic 22 | . . . . . . . 3 . . . . . 3 . 3 . . . 6 . . . . 3 . . . . 1 . 1 2 . . . Build 11 | . . . . . . . 1 . . . . . 1 . 1 . . . 3 . . . . 2 . . . . . . 1 2 . . . Repair Station Hacks 29 | . 10 . . . . . 1 . . . . . 4 . 2 . . . 8 . . . . . . . . . . 4 . . . . . Scan Component 17 | . 5 . . . . . 1 . . . . . 3 . 2 . . . 4 . . . . . . . . . . 2 . . . . . Repair 12 | . 5 . . . . . . . . . . . 1 . . . . . 4 . . . . . . . . . . 2 . . . . . Recycling Unit Hacks 1 | . . . . . . 1 . . . . . . . . . . . . . . . . . . . . . . . . . . . . . Retrieve Components 1 | . . . . . . 1 . . . . . . . . . . . . . . . . . . . . . . . . . . . . . Scanalyzer 21 | . . . . . . . . . . . . . 2 . . . . . 13 . . . . . . . . . . . 5 . 1 . . Insert Component 12 | . . . . . . . . . . . . . 1 . . . . . 6 . . . . . . . . . . . 4 . 1 . . Analyze 9 | . . . . . . . . . . . . . 1 . . . . . 7 . . . . . . . . . . . 1 . . . . Garrison Access Hacks 6 | . . . . . . . . . . . . . 2 . 1 . . . 1 . . . . . . . . . . . . 1 1 . . Seal Access 6 | . . . . . . . . . . . . . 2 . 1 . . . 1 . . . . . . . . . . . . 1 1 . . Unauthorized Hacks 58 | . 10 . . . 3 2 2 . 4 . . . 6 . 2 . . . 13 . . . . 8 . . . . 1 . . 5 2 . . Terminals 37 | . 8 . . . 3 1 1 . 3 . . . 4 . . . . . 8 . . . . 3 . . . . . . . 4 2 . . Track 3 | . . . . . . . . . . . . . . . . . . . 2 . . . . . . . . . . . . . 1 . . Assimilate 8 | . 1 . . . . . 1 . 1 . . . . . . . . . 3 . . . . . . . . . . . . 2 . . . Botnet 20 | . 5 . . . 2 . . . 1 . . . 3 . . . . . 3 . . . . 3 . . . . . . . 2 1 . . Disrupt 1 | . 1 . . . . . . . . . . . . . . . . . . . . . . . . . . . . . . . . . . Operators 5 | . 1 . . . 1 1 . . 1 . . . 1 . . . . . . . . . . . . . . . . . . . . . . Fabricators 17 | . . . . . . . 1 . . . . . 2 . 2 . . . 5 . . . . 5 . . . . 1 . . 1 . . . Prioritize 6 | . . . . . . . . . . . . . . . 1 . . . 2 . . . . 2 . . . . . . . 1 . . . Fabnet 1 | . . . . . . . . . . . . . . . . . . . . . . . . 1 . . . . . . . . . . . Haulers 1 | . . . . . . . . . . . . . . . . . . . . . . . . 1 . . . . . . . . . . . Recompile 9 | . . . . . . . 1 . . . . . 2 . 1 . . . 3 . . . . 1 . . . . 1 . . . . . . Repair Stations . | . . . . . . . . . . . . . . . . . . . . . . . . . . . . . . . . . . . . Recycling Units 4 | . 2 . . . . 1 . . 1 . . . . . . . . . . . . . . . . . . . . . . . . . . Reject 1 | . . . . . . 1 . . . . . . . . . . . . . . . . . . . . . . . . . . . . . Tunnel 3 | . 2 . . . . . . . 1 . . . . . . . . . . . . . . . . . . . . . . . . . . Scanalyzers . | . . . . . . . . . . . . . . . . . . . . . . . . . . . . . . . . . . . . Garrison Access . | . . . . . . . . . . . . . . . . . . . . . . . . . . . . . . . . . . . . Data Cores Recovered 2 | . . . . . . . 1 . 1 . . . . . . . . . . . . . . . . . . . . . . . . . . Used 1 | . . . . . . . 1 . . . . . . . . . . . . . . . . . . . . . . . . . . . . Hacking Detections 83 | . 5 . . . 7 5 8 . 5 . . . 9 . 3 . . . 13 . . . . 2 . . . . . 5 2 9 4 3 3 Full Trace Events 12 | . . . . . 1 . 2 . . . . . 1 . 1 . . . 1 . . . . . . . . . . 1 1 4 . . . Feedback Events 2 | . . . . . . . 1 . . . . . 1 . . . . . . . . . . . . . . . . . . . . . . Corruption 2 | . . . . . . . 1 . . . . . 1 . . . . . . . . . . . . . . . . . . . . . . Feedback Blocked . | . . . . . . . . . . . . . . . . . . . . . . . . . . . . . . . . . . . . Robot Schematics Acquired 10 | . . . . . . . . . . . 4 . . . . . 6 . . . . . . . . . . . . . . . . . . Robots Built . | . . . . . . . . . . . . . . . . . . . . . . . . . . . . . . . . . . . . Authchips . | . . . . . . . . . . . . . . . . . . . . . . . . . . . . . . . . . . . . Time . | . . . . . . . . . . . . . . . . . . . . . . . . . . . . . . . . . . . . Total Robot Build Rating . | . . . . . . . . . . . . . . . . . . . . . . . . . . . . . . . . . . . . Part Schematics Acquired 45 | . 2 . . . . 1 . . . . 13 . 3 . . . 9 . 10 . . . . 2 . . 3 . . . 1 1 . . . Parts Built 10 | . . . . . . . 1 . . . . . . . 1 . . . 3 . . . . 2 . . . . . . 1 2 . . . Authchips 8 | . . . . . . . 1 . . . . . 1 . 1 . . . 3 . . . . 2 . . . . . . . . . . . Time 724 | . . . . . . . 47 . . . . . 53 . 53 . . . 115 . . . . 227 . . . . . . 152 77 . . . Total Part Build Rating 59 | . . . . . . . 5 . . . . . . . 6 . . . 18 . . . . 13 . . . . . . 5 12 . . . Parts Repaired 12 | . 5 . . . . . . . . . . . 1 . . . . . 4 . . . . . . . . . . 2 . . . . . Time 560 | . 130 . . . . . . . . . . . 22 . . . . . 320 . . . . . . . . . . 88 . . . . . Parts Recycled . | . . . . . . . . . . . . . . . . . . . . . . . . . . . . . . . . . . . . Recycled Matter . | . . . . . . . . . . . . . . . . . . . . . . . . . . . . . . . . . . . . Retrieved Matter . | . . . . . . . . . . . . . . . . . . . . . . . . . . . . . . . . . . . . Retrieved Components 9 | . . . . . . 9 . . . . . . . . . . . . . . . . . . . . . . . . . . . . . Parts Scanalyzed 7 | . . . . . . . . . . . . . 1 . . . . . 5 . . . . . . . . . . . 1 . . . . Part Schematics Acquired 7 | . . . . . . . . . . . . . 1 . . . . . 5 . . . . . . . . . . . 1 . . . . Parts Damaged . | . . . . . . . . . . . . . . . . . . . . . . . . . . . . . . . . . . . . Bothacking | -11 -10 -10 -10 -9 -8 -8 -7 -7 -7 -7 -7 -6 -6 -6 -6 -6 -6 -5 -5 -5 -5 -5 -4 -4 -4 -4 -4 -3 -3 -3 -2 -2 -2 -1 -1 ------------ Run | Scr Mat Min Exi Min Mat Sto Fac Was Fac Low Zio Pro Fac Was Fac Low Dat Pro Fac Upp Upp War Pro Fac Upp Upp Zhi Pro Res Qua Res Tes Sec Acc Com Used RIF Installer . | . . . . . . . . . . . . . . . . . . . . . . . . . . . . . . . . . . . . Robots Hacked . | . . . . . . . . . . . . . . . . . . . . . . . . . . . . . . . . . . . . Non-combat . | . . . . . . . . . . . . . . . . . . . . . . . . . . . . . . . . . . . . Combat . | . . . . . . . . . . . . . . . . . . . . . . . . . . . . . . . . . . . . Robot Hacks Applied . | . . . . . . . . . . . . . . . . . . . . . . . . . . . . . . . . . . . . Relay Couplers Released 2 | . . . . . 1 1 . . . . . . . . . . . . . . . . . . . . . . . . . . . . . Machine Destruction 2 | . . . . . 1 1 . . . . . . . . . . . . . . . . . . . . . . . . . . . . . Fabnet Peak Effective % . | . . . . . . . . . . . . . . . . . . . . . . . . . . . . . . . . . . . . Robots Rewired . | . . . . . . . . . . . . . . . . . . . . . . . . . . . . . . . . . . . . Allies Hacked . | . . . . . . . . . . . . . . . . . . . . . . . . . . . . . . . . . . . . Hacks Repelled . | . . . . . . . . . . . . . . . . . . . . . . . . . . . . . . . . . . . . Allies | -11 -10 -10 -10 -9 -8 -8 -7 -7 -7 -7 -7 -6 -6 -6 -6 -6 -6 -5 -5 -5 -5 -5 -4 -4 -4 -4 -4 -3 -3 -3 -2 -2 -2 -1 -1 -------- Run | Scr Mat Min Exi Min Mat Sto Fac Was Fac Low Zio Pro Fac Was Fac Low Dat Pro Fac Upp Upp War Pro Fac Upp Upp Zhi Pro Res Qua Res Tes Sec Acc Com Total Allies 24 | . 1 . . . . 10 1 1 1 . 3 . . . . . . . 2 . . . . . . . . . . . . 5 . . . Largest Group 10 | . 1 . . . . 10 1 1 1 . 3 3 . . . . . . 2 . . . . . . . . . . . . 4 . . . Highest-Rated Group 183 | . 9 . . . . 173 26 31 26 . 93 93 . . . . . . 36 . . . . . . . . . . . . 183 . . . Highest-Rated Ally 46 | . 9 . . . . 29 26 31 26 . 31 31 . . . . . . 26 . . . . . . . . . . . . 46 . . . Total Orders . | . . . . . . . . . . . . . . . . . . . . . . . . . . . . . . . . . . . . Ally Attacks 137 | . . . . . . 108 . 6 . . . 15 . . . . . . . . . . . . . . . . . . . 8 . . . Total Damage 2040 | . . . . . . 1448 . 127 . . . 213 . . . . . . . . . . . . . . . . . . . 252 . . . Kills 19 | . . . . . . 15 . . . . . 4 . . . . . . . . . . . . . . . . . . . . . . . Allies Corrupted 1 | . . . . . . 1 . . . . . . . . . . . . . . . . . . . . . . . . . . . . . Allies Melted 3 | . . . . . . . . . . . . . . . . . . . . . . . . . . . . . . . . . . . 3 Intel | -11 -10 -10 -10 -9 -8 -8 -7 -7 -7 -7 -7 -6 -6 -6 -6 -6 -6 -5 -5 -5 -5 -5 -4 -4 -4 -4 -4 -3 -3 -3 -2 -2 -2 -1 -1 ------- Run | Scr Mat Min Exi Min Mat Sto Fac Was Fac Low Zio Pro Fac Was Fac Low Dat Pro Fac Upp Upp War Pro Fac Upp Upp Zhi Pro Res Qua Res Tes Sec Acc Com Robot Analysis Total 12 | . 4 . . . . . . . . . . . . . . . . . 1 . . . . . . . 4 . . . . . 3 . . Derelict Logs Recovered 11 | . . . . . . . . . . . 1 2 . . . . . 2 . 1 1 . 3 . 1 . . . . . . . . . . Drone Launches . | . . . . . . . . . . . . . . . . . . . . . . . . . . . . . . . . . . . . Drone Recoveries . | . . . . . . . . . . . . . . . . . . . . . . . . . . . . . . . . . . . . Exploration | -11 -10 -10 -10 -9 -8 -8 -7 -7 -7 -7 -7 -6 -6 -6 -6 -6 -6 -5 -5 -5 -5 -5 -4 -4 -4 -4 -4 -3 -3 -3 -2 -2 -2 -1 -1 ------------- Run | Scr Mat Min Exi Min Mat Sto Fac Was Fac Low Zio Pro Fac Was Fac Low Dat Pro Fac Upp Upp War Pro Fac Upp Upp Zhi Pro Res Qua Res Tes Sec Acc Com Turns Passed 16988 | 77 2425 526 721 378 2277 1336 625 57 313 15 403 361 1087 26 179 106 35 448 1422 43 259 262 284 234 96 64 69 172 61 224 186 716 178 140 1183 Spaces Moved 21260 | 48 955 202 301 121 784 604 1279 196 794 50 1177 655 2212 74 450 144 116 353 2258 188 250 914 722 510 402 243 184 413 198 391 576 1427 448 371 1250 Core 14 | 14 . . . . . . . . . . . . . . . . . . . . . . . . . . . . . . . . . . . Treads 3001 | 34 955 202 301 121 784 604 . . . . . . . . . . . . . . . . . . . . . . . . . . . . . Legs 220 | . . . . . . . . . . . . . . . . . . . . . . . . . . . . . . . . . . . 220 Wheels . | . . . . . . . . . . . . . . . . . . . . . . . . . . . . . . . . . . . . Hover . | . . . . . . . . . . . . . . . . . . . . . . . . . . . . . . . . . . . . Flight 18016 | . . . . . . . 1279 196 794 50 1177 655 2212 74 450 144 116 353 2258 188 250 914 722 510 402 243 184 413 198 391 576 1427 448 368 1024 Fastest Speed 6 | 50 160 240 240 240 160 161 26 26 26 26 26 26 26 26 26 26 20 20 11 17 17 12 12 18 6 21 18 21 12 7 18 15 19 15 16 Average Speed 51 | 131 210 240 240 240 233 167 26 26 26 26 26 26 26 26 26 28 24 24 24 22 22 22 20 20 19 21 22 21 20 22 18 18 19 18 46 Slowest Speed 250 | 160 240 240 240 240 241 250 29 26 26 26 26 26 26 26 26 158 26 26 91 23 90 23 21 21 21 21 92 22 91 91 19 19 19 19 190 Overloaded Moves 325 | . . . . . . . . . . . . . . . . . 18 66 25 4 37 17 3 . 22 . . . 52 17 . 22 . 17 25 Propulsion Burnouts . | . . . . . . . . . . . . . . . . . . . . . . . . . . . . . . . . . . . . Robots Hopped 69 | . . . . . . . . . 6 . . . 15 . . . 3 3 3 . . 2 . 7 8 1 . . 5 1 2 10 . . 3 Cave-ins Triggered 1 | . . . . . . . . . . . . . . . . . . . . . . . . . . . . 1 . . . . . . . Teleports 1 | . . . . . . . . . . . . . . . . . . . . . . . . . . . . . . . . . . . 1 Spacefolds 4 | . . . . . . . . . . . . . . . . . . . . . . . . . . . . . . . . . . 1 3 Exploration Rate (%) 48 | 4 100 37 60 15 59 71 31 85 18 7 85 69 53 75 13 22 82 50 54 45 52 95 76 14 70 43 61 57 11 51 16 89 33 7 41 Regions Visited 35 Branch Regions 22 Pre-discovered Areas 11 | . 2 . . . . . . . 1 . 4 . . . . . 1 . . . . . . . . . 3 . . . . . . . . Known Exits Taken 24 | . . . . . 1 . . . 1 1 1 1 . . 1 1 1 1 1 1 1 1 1 1 1 1 1 1 1 1 1 . 1 1 . Unknown Exits Taken 7 | 1 1 1 1 1 . 1 . . . . . . . . . . . . . . . . . . . . . . . . . 1 . . . Scrap Searched 19 | . . 1 . . . . . . . . 2 2 . . . . . 2 . 1 2 . 2 . 3 1 . 3 . . . . . . . Spaces Dug 284 | . . . . . . . 9 . 7 . 3 6 54 . 2 . . 54 41 . 3 . 8 . 22 . . 30 . 13 . 12 9 4 7 Terrain Destroyed 525 | . . . . 12 106 6 9 . 7 . 3 6 54 . 2 . . 69 117 . 3 . 8 . 22 . . 30 . 13 . 12 10 4 32 Melee 157 | . . . . . . . 9 . 7 . 3 6 40 . 2 . . 6 41 . 3 . 8 . . . . . . . . 12 9 4 7 Projectile 65 | . . . . . 53 . . . . . . . . . . . . . . . . . . . 1 . . 2 . 1 . . 1 . 7 AOE 303 | . . . . 12 53 6 . . . . . . 14 . . . . 63 76 . . . . . 21 . . 28 . 12 . . . . 18 Terrain Rammed . | . . . . . . . . . . . . . . . . . . . . . . . . . . . . . . . . . . . . Walls Destroyed . | . . . . . . . . . . . . . . . . . . . . . . . . . . . . . . . . . . . . Machines Disabled . | . . . . . . . . . . . . . . . . . . . . . . . . . . . . . . . . . . . . Actions | -11 -10 -10 -10 -9 -8 -8 -7 -7 -7 -7 -7 -6 -6 -6 -6 -6 -6 -5 -5 -5 -5 -5 -4 -4 -4 -4 -4 -3 -3 -3 -2 -2 -2 -1 -1 --------- Run | Scr Mat Min Exi Min Mat Sto Fac Was Fac Low Zio Pro Fac Was Fac Low Dat Pro Fac Upp Upp War Pro Fac Upp Upp Zhi Pro Res Qua Res Tes Sec Acc Com Total 26036 | 60 1253 234 300 158 1011 815 1530 200 873 51 1258 832 2599 81 503 209 116 694 2996 187 442 971 832 629 408 254 213 491 213 512 644 1831 507 431 1698 Wait 3368 | . 155 11 . 2 32 85 175 2 67 2 60 169 285 4 42 50 . 312 608 . 171 30 94 112 7 9 8 77 7 88 41 351 19 59 234 Move 21096 | 47 954 201 300 120 783 603 1279 195 783 49 1176 654 2186 73 449 143 109 347 2251 187 249 909 721 496 389 240 183 411 187 388 571 1407 447 368 1241 Hop 56 | . . . . . . . . . 4 . . . 11 . . . 3 2 3 . . 2 . 6 4 1 . . 5 1 2 9 . . 3 Pick Up 159 | 7 31 5 . 2 15 14 5 . . . 2 . 8 2 2 4 . 1 14 . 4 3 . 4 . . 3 . 2 5 4 8 4 . 10 Fast Attach 178 | 5 6 1 . 1 9 10 11 2 5 . 4 1 7 . . . . 6 15 . . 9 2 3 3 2 7 . . 10 4 13 3 . 39 Attach 91 | 1 2 2 . 3 11 . 8 . . . 2 . 7 . 1 3 2 5 9 . 3 . . 3 1 . . . 3 3 . . 3 . 19 Detach 31 | . 2 1 . . 1 1 1 . . . . . 7 . . 1 1 4 4 . . 1 . . . . . . 1 1 . . . . 5 Swap 76 | . 6 . . 1 20 10 2 . . . . 1 . . 7 . . . 10 . 2 2 2 2 . . 2 . . . 5 1 . . 3 Drop 257 | . 18 6 . . 16 26 27 1 4 . 6 1 9 2 . 6 . 6 14 . 7 15 2 3 3 2 10 . . 7 10 19 4 . 33 Fire 406 | . 68 7 . 29 116 61 . . . . . . 1 . . . . 4 7 . . . . . 1 . . 2 . 2 4 4 15 . 85 Melee 260 | . . . . . . . 22 . 10 . 8 6 57 . 2 1 1 6 60 . 6 . 10 . . . . . . 7 3 19 12 4 26 Ram . | . . . . . . . . . . . . . . . . . . . . . . . . . . . . . . . . . . . . Kick . | . . . . . . . . . . . . . . . . . . . . . . . . . . . . . . . . . . . . Crush 24 | . 11 . . . 8 5 . . . . . . . . . . . . . . . . . . . . . . . . . . . . . Escape Stasis 28 | . . . . . . . . . . . . . 18 . . . . 1 . . . . . . . . . 1 8 . . . . . . Rewire . | . . . . . . . . . . . . . . . . . . . . . . . . . . . . . . . . . . . . Trap 6 | . . . . . . . . . . . . . 3 . . 1 . . 1 . . . 1 . . . . . . . . . . . . Miscellaneous . | . . . . . . . . . . . . . . . . . . . . . . . . . . . . . . . . . . . . Route ------- -11/Scrapyard -10/Materials (discovered 4 exits: [*Mat x3] / *Min) -10/Mines (discovered 2 exits: [*Mat] / *Exi) -10/Exiles -9/Mines -8/Materials (discovered 3 exits: *Fac / *Sto x2) -8/Storage -7/Factory -7/Waste -7/Factory -7/Lower Caves -7/Zion (discovered 2 exits: [*Dee] / *Pro) -6/Proximity Caves -6/Factory (discovered 5 exits: *Fac x3 / *Low x2) -6/Waste -6/Factory -6/Lower Caves -6/Data Miner -5/Proximity Caves -5/Factory (discovered 3 exits: *Fac / *Upp x2) -5/Upper Caves -5/Upper Caves (discovered 2 exits: *Fac / *War) -5/Warlord -4/Proximity Caves -4/Factory (discovered 2 exits: *Upp / Arm) -4/Upper Caves -4/Upper Caves -4/Zhirov -3/Proximity Caves -3/Research -3/Quarantine -2/Research (discovered 2 exits: *Acc / *Tes) -2/Testing (discovered 2 exits: *Acc / *Sec) -2/Section 7 -1/Access -1/Command (discovered 2 exits: Sur x2) History --------- Turn | Location | Event 9 | -11/Scrapyard | Discovered new exit (range 15) 78 | -11/Scrapyard | Entered Materials 304 | -10/Materials | Build established: Mutant 459 | -10/Materials | Discovered new exit (range 3) 776 | -10/Materials | Central database locked down 878 | -10/Materials | Discovered new exit (range 7) 1002 | -10/Materials | Discovered new exit (range 15) 1649 | -10/Materials | Discovered new exit (range 5) 2273 | -10/Materials | Repaired Lgt. Treads 2299 | -10/Materials | Repaired Lgt. Treads 2325 | -10/Materials | Repaired Lgt. Treads 2352 | -10/Materials | Repaired Lgt. Treads 2379 | -10/Materials | Repaired Lgt. Treads 2503 | -10/Materials | Entered Mines 2525 | -10/Mines | Met a Derelict bent on vengeance 2537 | -10/Mines | Discovered new exit (range 15) 2640 | -10/Mines | Met a Derelict shopkeep closing up shop 2885 | -10/Mines | Deemed a non-threat by the Exiles lab entrance 3019 | -10/Mines | Discovered new exit (range 5) 3029 | -10/Mines | Entered Exiles 3029 | -10/Exiles | Found Exiles lab abandoned 3718 | -10/Exiles | Discovered new exit (range 14) 3750 | -10/Exiles | Entered Mines 3805 | -9/Mines | Discovered new exit (range 7) 3904 | -9/Mines | Core integrity fell below 50% 3950 | -9/Mines | Lost 4 parts (1p1n1u1w) 3952 | -9/Mines | Destroyed 7 combat bots 4128 | -9/Mines | Entered Materials 4128 | -8/Materials | Evolved 4 slots: Propulsion x1, Utility x3 4365 | -8/Materials | Lost 3 parts (1n2u) 4965 | -8/Materials | Discovered new exit (range 16) 5362 | -8/Materials | Garrison activated, responded to threat 6027 | -8/Materials | Identified exit to Storage 6080 | -8/Materials | Core integrity fell below 50% 6165 | -8/Materials | Lost 3 parts (1n2u) 6405 | -8/Materials | Entered Storage 6805 | -8/Storage | First assault squad dispatched 6893 | -8/Storage | Assisted by bots powering up and referring to "LRC-V3" 7203 | -8/Storage | Build established: Commander-Mutant 7657 | -8/Storage | Build established: Scavenger-Mutant 7662 | -8/Storage | Discovered new exit (range 6) 7741 | -8/Storage | Entered Factory 7741 | -7/Factory | Evolved 2 slots: Propulsion x1, Utility x1 7776 | -7/Factory | Garrison activated, responded to threat 7985 | -7/Factory | Discovered new exit (range 15) 8045 | -7/Factory | Build established: Sprinter 8222 | -7/Factory | Fabricated Adv. Sensor Array (x1) 8366 | -7/Factory | Manually triggered Chute Trap 8366 | -7/Factory | Sucked down chute 8366 | -7/Factory | Entered Waste 8367 | -7/Waste | Met a frightened Derelict 8370 | -7/Waste | Spotted C-40 Crusher 8370 | -7/Waste | Spotted C-40 Crusher 8374 | -7/Waste | Spotted C-40 Crusher 8381 | -7/Waste | EMP discharged 8383 | -7/Waste | Spotted C-40 Crusher 8383 | -7/Waste | Spotted C-40 Crusher 8385 | -7/Waste | Discovered new exit (range 16) 8386 | -7/Waste | Spotted C-40 Crusher 8422 | -7/Waste | Identified exit to Factory 8423 | -7/Waste | Entered Factory 8494 | -7/Factory | Discovered new exit (range 4) 8495 | -7/Factory | Identified exit to Lower Caves 8668 | -7/Factory | Build established: Hacker-Sprinter 8736 | -7/Factory | Entered Lower Caves 8737 | -7/Lower Caves | A Derelict revealed a hidden shortcut to a safe place 8742 | -7/Lower Caves | Identified exit to Zion 8746 | -7/Lower Caves | Spotted B-75 Beast 8751 | -7/Lower Caves | Entered Zion 8766 | -7/Zion | System corruption cleaned by Quarantine Array 8777 | -7/Zion | Discovered new exit (range 12) 8844 | -7/Zion | Gained Derelict followers 8860 | -7/Zion | Learned location of Armory (-4) 8899 | -7/Zion | Learned location of Warlord (-5) 8918 | -7/Zion | Visited the Megawrench Repair Shop 8918 | -7/Zion | Megawrench repaired 5 parts 8954 | -7/Zion | Found Prototype Device 8964 | -7/Zion | Identified Bomb Factory No. 2 8965 | -7/Zion | Found Prototype Device 8965 | -7/Zion | Identified Mobile Refinery Mk. CCLXVII 9037 | -7/Zion | Discovered new exit (range 4) 9040 | -7/Zion | Saw the warning signs outside the Deep Caves entrance 9085 | -7/Zion | Identified exit to Proximity Caves 9154 | -7/Zion | Entered Proximity Caves 9154 | -6/Proximity Caves | Accompanied by 3 allies 9354 | -6/Proximity Caves | Learned Factory non-interactive machine intel 9355 | -6/Proximity Caves | Learned Factory non-interactive machine intel 9498 | -6/Proximity Caves | Discovered new exit (range 16) 9515 | -6/Proximity Caves | Identified exit to Factory 9515 | -6/Proximity Caves | Entered Factory 9515 | -6/Factory | Evolved 2 slots: Utility x2 9516 | -6/Factory | Loaded intel: 175 non-interactive machine locations 9923 | -6/Factory | Central database locked down 9964 | -6/Factory | Discovered new exit (range 15) 9968 | -6/Factory | Noticed a derelict Sapper rigging charges 9979 | -6/Factory | Identified exit to Factory 10078 | -6/Factory | Discovered new exit (range 5) 10082 | -6/Factory | Identified exit to Lower Caves 10173 | -6/Factory | Discovered exit to Lower Caves (range 19) 10271 | -6/Factory | Spotted B-75 Beast 10307 | -6/Factory | Repaired Greatsword 10376 | -6/Factory | Build established: Hacker-Scout 10442 | -6/Factory | Discovered exit to Factory (range 11) 10598 | -6/Factory | Discovered exit to Factory (range 5) 10602 | -6/Factory | Sucked down chute 10602 | -6/Factory | Entered Waste 10603 | -6/Waste | Spotted C-40 Crusher 10605 | -6/Waste | Spotted C-40 Crusher 10611 | -6/Waste | Spotted C-40 Crusher 10613 | -6/Waste | Spotted C-40 Crusher 10615 | -6/Waste | Spotted C-40 Crusher 10616 | -6/Waste | Discovered new exit (range 21) 10627 | -6/Waste | Spotted C-40 Crusher 10628 | -6/Waste | Identified exit to Factory 10628 | -6/Waste | Entered Factory 10629 | -6/Factory | Loaded intel: 176 non-interactive machine locations 10731 | -6/Factory | Fabricated Adv. Hacking Suite (x1) 10787 | -6/Factory | Discovered exit to Lower Caves (range 3) 10807 | -6/Factory | Entered Lower Caves 10910 | -6/Lower Caves | Encountered a Warlord checkpoint 10911 | -6/Lower Caves | A Derelict revealed a hidden shortcut to meet someone special 10913 | -6/Lower Caves | Identified exit to Data Miner 10913 | -6/Lower Caves | Entered Data Miner 10913 | -6/Data Miner | Discovered new exit (range 6) 10917 | -6/Data Miner | Met Data Miner 10924 | -6/Data Miner | Learned location of Section 7 (-2) 10924 | -6/Data Miner | Acquired the access code to Warlord's prototype stash 10928 | -6/Data Miner | Received God Mode back door access code from Data Miner 10943 | -6/Data Miner | Data Conduit disabled 10947 | -6/Data Miner | Identified exit to Proximity Caves 10948 | -6/Data Miner | Entered Proximity Caves 11021 | -5/Proximity Caves | Learned Factory stockpile data 11057 | -5/Proximity Caves | Learned Factory stockpile data 11392 | -5/Proximity Caves | Discovered exit to Factory (range 20) 11396 | -5/Proximity Caves | Entered Factory 11396 | -5/Factory | Evolved 2 slots: Power x1, Propulsion x1 11615 | -5/Factory | Fabricated Cld. Nuclear Pulse Thruster (x1) 11634 | -5/Factory | Fabricated Adv. Hacking Suite (x1) 11983 | -5/Factory | Repaired Imp. Cloaking Device 12054 | -5/Factory | Repaired Cld. VTOL Module 12155 | -5/Factory | Repaired Adv. Matter Compressor 12245 | -5/Factory | Discovered new exit (range 7) 12249 | -5/Factory | Identified exit to Upper Caves 12255 | -5/Factory | Central database locked down 12482 | -5/Factory | Discovered new exit (range 19) 12544 | -5/Factory | Fabricated Cld. Nuclear Pulse Thruster (x1) 12704 | -5/Factory | Spotted B-75 Beast 12722 | -5/Factory | Repaired Lgt. Neutrino Core? 12818 | -5/Factory | Entered Upper Caves 12826 | -5/Upper Caves | Learned Factory emergency access door positions 12860 | -5/Upper Caves | Discovered new exit (range 6) 12861 | -5/Upper Caves | Identified exit to Upper Caves 12861 | -5/Upper Caves | Entered another Upper Caves area 12871 | -5/Upper Caves | Discovered new exit (range 9) 13102 | -5/Upper Caves | Learned Armory stockpile data 13117 | -5/Upper Caves | Discovered new exit (range 17) 13120 | -5/Upper Caves | Identified exit to Warlord 13120 | -5/Upper Caves | Entered Warlord 13121 | -5/Warlord | Identified exit to Proximity Caves 13154 | -5/Warlord | Found Prototype Special Weapon 13154 | -5/Warlord | Identified RU-N14's Throwing Claymores v3 13159 | -5/Warlord | Found RU-N14's Throwing Claymores v3 13192 | -5/Warlord | Learned Research security intel 13192 | -5/Warlord | Learned Quarantine security intel 13192 | -5/Warlord | Learned Armory fabricator intel 13192 | -5/Warlord | Learned 4 Armory zone layouts 13192 | -5/Warlord | Learned 4 Testing zone layouts 13192 | -5/Warlord | Learned Quarantine trap positions 13234 | -5/Warlord | Warlord's base attacked by MAIN.C 13268 | -5/Warlord | Met EX-DEC 13269 | -5/Warlord | Found Prototype Energy Gun 13269 | -5/Warlord | Identified Vortex Rifle 13276 | -5/Warlord | Found Prototype Energy Cannon 13293 | -5/Warlord | Met Warlord 13296 | -5/Warlord | Opened Warlord's prototype stash 13301 | -5/Warlord | Found Prototype Processor 13301 | -5/Warlord | Identified Exp. Core Analyzer 13304 | -5/Warlord | Found Prototype Processor 13304 | -5/Warlord | Identified Exp. Targeting Computer 13307 | -5/Warlord | Found Prototype Hackware 13307 | -5/Warlord | Identified Ghost Barrier 13334 | -5/Warlord | Opened side exit 13382 | -5/Warlord | Entered Proximity Caves 13410 | -4/Proximity Caves | Spotted B-86 Titan 13445 | -4/Proximity Caves | Learned 4 Research zone layouts 13445 | -4/Proximity Caves | Learned Research garrison access intel 13456 | -4/Proximity Caves | Attracted the attention of an 0b10 checkpoint 13531 | -4/Proximity Caves | Learned location of 1 exit from Research 13602 | -4/Proximity Caves | Build established: Wizard-Scout 13664 | -4/Proximity Caves | Discovered new exit (range 11) 13665 | -4/Proximity Caves | Identified exit to Factory 13666 | -4/Proximity Caves | Entered Factory 13666 | -4/Factory | Evolved 2 slots: Propulsion x1, Utility x1 13667 | -4/Factory | Identified exit to Armory 13712 | -4/Factory | Discovered new exit (range 17) 13715 | -4/Factory | Identified exit to Upper Caves 13805 | -4/Factory | Fabricated Cld. Nuclear Pulse Thruster (x1) 13880 | -4/Factory | Fabricated Lrn. Terrain Scanner (x1) 13900 | -4/Factory | Entered Upper Caves 13955 | -4/Upper Caves | Learned 4 Research zone layouts 13981 | -4/Upper Caves | Discovered new exit (range 19) 13996 | -4/Upper Caves | Identified exit to Upper Caves 13996 | -4/Upper Caves | Entered another Upper Caves area 14023 | -4/Upper Caves | Spotted B-86 Titan 14056 | -4/Upper Caves | Discovered new exit (range 21) 14060 | -4/Upper Caves | Identified exit to Zhirov 14060 | -4/Upper Caves | Entered Zhirov 14060 | -4/Zhirov | Discovered new exit (range 3) 14064 | -4/Zhirov | Met Zhirov 14069 | -4/Zhirov | Learned location of Quarantine (-3) 14069 | -4/Zhirov | Learned location of Command (-1) 14070 | -4/Zhirov | Zhirov requested help retrieving the SGEMP Prototype 14074 | -4/Zhirov | Found Alien Artifact 14074 | -4/Zhirov | Identified Integrated Reactor 14074 | -4/Zhirov | Installed Integrated Reactor, increased core energy generation (+10) 14079 | -4/Zhirov | Found Alien Artifact 14129 | -4/Zhirov | Identified exit to Proximity Caves 14129 | -4/Zhirov | Entered Proximity Caves 14255 | -3/Proximity Caves | Discovered new exit (range 21) 14298 | -3/Proximity Caves | Crushed by falling debris 14301 | -3/Proximity Caves | Identified exit to Research 14301 | -3/Proximity Caves | Entered Research 14301 | -3/Research | Evolved 2 slots: Utility x2 14302 | -3/Research | Identified exit to Quarantine 14305 | -3/Research | Loaded intel: 4 garrison access locations 14329 | -3/Research | Lost 3 parts (1n2u) 14362 | -3/Research | Entered Quarantine 14363 | -3/Quarantine | Loaded intel: 16 trap records 14363 | -3/Quarantine | Identified exit to Research 14367 | -3/Quarantine | Found Prototype Processor 14367 | -3/Quarantine | Identified Exp. Signal Interpreter 14379 | -3/Quarantine | Found Alien Artifact 14405 | -3/Quarantine | Cryocooling Duct disabled 14420 | -3/Quarantine | Ambient heat levels rising (+20) 14420 | -3/Quarantine | Non-combat units ordered to evacuate 14464 | -3/Quarantine | Repaired Cld. Nuclear Pulse Thruster 14510 | -3/Quarantine | Repaired Cld. Nuclear Pulse Thruster 14574 | -3/Quarantine | Found Alien Artifact 14586 | -3/Quarantine | Entered Research 14586 | -2/Research | Warlord forces began assault on 0b10 14586 | -2/Research | Evolved 2 slots: Weapon x2 14588 | -2/Research | Identified BFG-9k Vortex Edition 14588 | -2/Research | Identified Transdimensional Reconstructor 14588 | -2/Research | Identified Subatomic Replicator 14589 | -2/Research | Discovered new exit (range 7) 14596 | -2/Research | Build established: Wizard-Sprinter 14599 | -2/Research | Identified exit to Testing 14661 | -2/Research | Met up with Warlord 14696 | -2/Research | Research machine network offline 14720 | -2/Research | Found Prototype Device 14720 | -2/Research | Identified Exp. Shock Absorption System 14757 | -2/Research | Fabricated Exp. Weapon Shielding? 14772 | -2/Research | Discovered new exit (range 13) 14772 | -2/Research | Entered Testing 14788 | -2/Testing | Found Prototype Device 14788 | -2/Testing | Identified Exp. Hardlight Generator 14829 | -2/Testing | Spotted Striker 14873 | -2/Testing | Fabricated Adv. Sensor Array (x1) 14892 | -2/Testing | Found Prototype Energy Cannon 14892 | -2/Testing | Identified Disintegrator 14901 | -2/Testing | Central database locked down 15107 | -2/Testing | Fabricated Exp. Terrain Scan Processor? 15107 | -2/Testing | Discovered new exit (range 9) 15175 | -2/Testing | Build established: Wizard-Ninja 15198 | -2/Testing | Identified exit to Access 15243 | -2/Testing | Found Prototype Device 15243 | -2/Testing | Identified AEGIS Remote Shield 15459 | -2/Testing | Found Prototype Energy Gun 15459 | -2/Testing | Identified Hyp. EM Gauss Rifle 15470 | -2/Testing | Spotted Fortress 15483 | -2/Testing | Discovered new exit (range 17) 15488 | -2/Testing | Entered Section 7 15497 | -2/Section 7 | Spotted S7 Guard 15503 | -2/Section 7 | Found Integrated Reactor 15503 | -2/Section 7 | Installed Integrated Reactor, increased core energy generation (+10) 15531 | -2/Section 7 | Found Alien Artifact 15587 | -2/Section 7 | Identified Integrated Thermoelectric Network 15589 | -2/Section 7 | Installed Integrated Thermoelectric Network, gained heat-energy exchange potential 15622 | -2/Section 7 | Spotted B-90 Cyclops 15636 | -2/Section 7 | Found Alien Artifact 15636 | -2/Section 7 | Identified Spacefold Activator 15666 | -2/Section 7 | Entered Access 15666 | -1/Access | Evolved 2 slots: Weapon x2 15685 | -1/Access | Identified exit to Command 15714 | -1/Access | Build established: Wizard-Scout 15793 | -1/Access | Spotted B-99 Colossus 15806 | -1/Access | Entered Command 15885 | -1/Command | Spotted B-99 Colossus 15922 | -1/Command | Disengaged cave seal 15933 | -1/Command | Welcomed Warlord to Command 16101 | -1/Command | Search patrols dispatched 16160 | -1/Command | Build established: Wizard-Sprinter 16162 | -1/Command | Spotted M Guard 16189 | -1/Command | Warlord commented on Warlord statues 16204 | -1/Command | Combat Programmer assimilated allied YC-G4K(g) 16205 | -1/Command | Spotted Combat Programmer 16209 | -1/Command | Spotted Combat Programmer 16212 | -1/Command | Spotted M Guard 16256 | -1/Command | Combat Programmer assimilated allied 5D-3PE(i) 16270 | -1/Command | Warlord destroyed during the assault 16286 | -1/Command | Used Subatomic Replicator to replicate BFG-9k Vortex Edition 16292 | -1/Command | Core integrity fell below 50% 16300 | -1/Command | Destroyed Combat Programmer 16301 | -1/Command | Lost 4 parts (1p3u) 16307 | -1/Command | Destroyed M Guard 16329 | -1/Command | Found Prototype Reactor 16329 | -1/Command | Identified Zero-point Reactor 16352 | -1/Command | Met MAIN.C 16356 | -1/Command | System corruption reached 10% 16357 | -1/Command | Destroyed MAIN.C Shell 16360 | -1/Command | MAIN.C activated Command garrisons 16364 | -1/Command | Surrendered to MAIN.C 16364 | -1/Command | Loaded intel: 58 machine locations 16364 | -1/Command | Loaded intel: 114 trap records 16364 | -1/Command | Identified exit to Surface 16364 | -1/Command | Discovered exit to Surface (range 75) 16364 | -1/Command | Discovered exit to Surface (range 54) 16395 | -1/Command | Lost 3 parts (2n1w) 16522 | -1/Command | Found Zero-point Reactor 16525 | -1/Command | Found Zero-point Reactor 16528 | -1/Command | Found Prototype Reactor 16535 | -1/Command | MAIN.C activated Command garrisons 16543 | -1/Command | Found Prototype Protection 16543 | -1/Command | Identified Hvy. Regenerative Plating 16546 | -1/Command | Found Prototype Device 16546 | -1/Command | Identified Exp. System Purifier 16550 | -1/Command | Found Prototype Device 16550 | -1/Command | Identified Exp. Weapon Cycler 16553 | -1/Command | Found Exp. Phase Shifter 16573 | -1/Command | Unknown forces attacked Command 16573 | -1/Command | Spotted EQ-002 16573 | -1/Command | Spotted EQ-000 16573 | -1/Command | All MAIN.C guards destroyed 16581 | -1/Command | Destroyed EQ-002 16599 | -1/Command | Destroyed EQ-000 16668 | -1/Command | Spotted EQ-008 16670 | -1/Command | Spotted EQ-018 16674 | -1/Command | Spotted EQ-019 16678 | -1/Command | Destroyed EQ-018 16680 | -1/Command | Destroyed EQ-019 16693 | -1/Command | Destroyed EQ-008 16701 | -1/Command | Spotted EQ-029 16712 | -1/Command | Destroyed EQ-029 16713 | -1/Command | Spotted EQ-031 16718 | -1/Command | Destroyed EQ-031 16748 | -1/Command | Spotted EQ-033 16752 | -1/Command | Destroyed EQ-033 16774 | -1/Command | Spotted EQ-055 16774 | -1/Command | Spotted EQ-038 16774 | -1/Command | Spotted EQ-039 16794 | -1/Command | Destroyed EQ-039 16797 | -1/Command | Spotted EQ-015 16798 | -1/Command | Spotted EQ-021 16847 | -1/Command | Found Exp. Core Analyzer 16855 | -1/Command | Found Exp. Targeting Computer 16878 | -1/Command | Spotted EQ-045 16878 | -1/Command | Spotted EQ-058 16879 | -1/Command | Spotted EQ-054 16885 | -1/Command | Destroyed EQ-058 16888 | -1/Command | Destroyed EQ-045 16891 | -1/Command | Destroyed EQ-054 16893 | -1/Command | Spotted EQ-060 16893 | -1/Command | Spotted EQ-068 16893 | -1/Command | Spotted EQ-062 16893 | -1/Command | Spotted EQ-080 16893 | -1/Command | Spotted EQ-061 16906 | -1/Command | Spotted EQ-063 16907 | -1/Command | Destroyed EQ-062 16913 | -1/Command | Spotted EQ-025 16916 | -1/Command | Core integrity fell below 20% 16921 | -1/Command | Spotted EQ-016 16935 | -1/Command | Destroyed EQ-063 16949 | -1/Command | Spotted EQ-042 16955 | -1/Command | Warped through subspace 16955 | -1/Command | Spotted EQ-023 16963 | -1/Command | Destroyed EQ-023 16978 | -1/Command | Spotted EQ-014 16983 | -1/Command | Lost 7 parts (1p3u3w) 16983 | -1/Command | Spotted EQ-064 16989 | -1/Command | Destroyed by EQ-064 with Graviton Cannon Last Messages --------------- 16975_ Slug penetrates H-88 Terminator. 16976_ Acquired Prototype Device. 16976_ Identified Exp. Cooling System. 16978_ Slug penetrates H-88 Terminator. 16980_ The unstable cave ceiling collapses. 16980_ Adv. Phase Shifter crushed. 16980_ Dropped Exp. Cooling System. 16983_ Slug penetrates H-88 Terminator. 16984_ Slug penetrates Wall. 16984_ Slug penetrates H-88 Terminator. 16984_ EQ-014 knocked back. 16985_ Slug penetrates H-88 Terminator. 16987_ H-88 Terminator destroyed. 16988_ The unstable cave ceiling collapses. 16988_ EQ-064 knocked back. 16988_ Penetrated by Slug. 16988_ Slug penetrates Reinforced Barrier. 16988_ Destroyed Prototype Device. 16988_ EQ-014 knocked back. 16989_ :HQOWGQO0E= HY4MZUGKO6=%0O4 GALJ ,ETG Map ----- +----------------------------------------------------+ | ??????#?#?#??????# #??# #?# #??# #????????????# # | | ??????#?#?#??????# #### ### #### #????????????# # | | ??????#?#?#??????# #????????????# | | ??????#?#?#??????######## ######????????????#### | | ??????#?#?#?????????????# #????????????????????? | | ??????#?#?#?????????????# #????????????????????? | | ??????#?#?#?????????????#%==#????????????????????? | | ??????#?#?#?????????????#!!!#????????????????????? | | ??????#?#?#?????????????#!!!#????????????????????? | | ??????#?#?#?????????????#!%!#????????????????????? | | ??????#?#?#?????????????#=![#????????????????????? | | ??????#?#?#?????????????#!!!#????????????????????? | | ??????#?#?#?????????????#=!%#????????????????????? | | ##????#?#?#???????????#?#%!!#????????????????????? | | ?#????#?#?#???????????# # = #????????????????????? | | ?#????#?#?#????????#### # #????????????????????? | | #################### # ###??????????????????? | | ?#???????????????#?## # #=% # #??????????????????? | | ###################### #|% #??????????????????? | | %%!! % ###!%%=# #??????????????????? | | [!!!% % # ##%[% #??????????????????? | | %=% !% # *#[[ # #????????##??###???? | | ################## # =[% ] #???????# #?## ##### | | ?#???????????????# # ## ! #?????## #?## | | ################## ####* #######"#### | | ?#????#?#?#??????# T# %@ ## # # # ## | | ?#????#?#?#??????#+ ## Q%## ### # ### | | ?#????#?#?#????? # | | ?#????#?#?#??????# %% % | | ?#????#?#?#??????# % W Q | | ?#????#?#?#??????# % % % % * | | ?#????#?#?#??????# % !! | | ?#????#?#?#??????# % ## ### W ## W ## ## | | ?#????#?#?#??????######## #?# # # # # #? | | ?#????#?#?#?????????????# ! ;?########### ## #? | | ?#????#?#?#?????????????# %%%???????????## ##? | | ?#????#?#?#?????????????# h ;????????????#######?? | | ?#????#?#?#?????????????#%==##???????????????????? | | ?#????#?#?#?????????????#!hh#????????????????????? | | ##????#?#?#?????????????#[%*#????????????????????? | | ??????#?#?#?????????????#[[%#???????????????###??? | | ??????#?#?#?????????????# #???????????????#"#### | | ??????#?#?#?????????????# #??????????????## | | ??????#?#?#?????????????# #??????????????#" | | ??????#?#?#?????????????# #??????????????## | | ??????#?#?#?????????????# #???????????????# | | ??????#?#?#?????????????# #???????????????# | | ??????#?#?#?????????????# #???????????????# | | ??????#?#?#?????????????# #???????????????# | | ??????#?#?#?????????????# #???????????????#[ | +----------------------------------------------------+ Best States ------------- Heat Dissipation 90 Energy Generation 97 Energy Capacity 1380 Matter Stores 300 Matter Capacity 300 Sight Range 22 Robot Scan Range 16 Terrain Scan Range 24 Terrain Scan Density 1010 ECM Strength 2 Jamming Range 16 Cloak Strength 3 Power Amplification 30 Armor Coverage 825 Resistance: TH 10 Resistance: EX 75 Propulsion Shielding 66 Weapon Cycling 30 Phase Shifting 20 Evasion (%) 78 Targeting Accuracy 12 Melee Accuracy 12 Launcher Accuracy 20 Core Analysis 8 Armor Integrity Analysis 40 Recoil Reduction 3 Offensive Hacking 42 Defensive Hacking 21 Authchip Count 2 Trap Extractor Capacity 8 Item Schematics ----------------- Hcp. Storage Unit | -10/Materials | Hacked Huge Storage Unit | -10/Materials | Hacked Adv. Sensor Array | -8/Storage | Hacked Imp. Titanium Leg | -7/Zion | Archive Enh. Optical Array | -7/Zion | Archive Imp. Reaction Control System | -7/Zion | Archive Arc Projector | -7/Zion | Archive Imp. Trap Scanner | -7/Zion | Archive Mak. System Shield | -7/Zion | Archive Imp. Kinecellerator | -7/Zion | Archive Drone Bay | -7/Zion | Archive Coolant Injector | -7/Zion | Archive Gauss Cannon | -7/Zion | Archive Fusion Compressor | -7/Zion | Archive Lrn. Proton Cannon | -7/Zion | Archive Mak. Hover Unit | -7/Zion | Archive Cld. VTOL Module | -6/Factory | Scanalyzed Adv. Hacking Suite | -6/Factory | Hacked Adv. System Shield | -6/Factory | Hacked Combat Drone Bay | -6/Data Miner | Free Lgt. Regenerative Plating | -6/Data Miner | Free Cld. Nuclear Pulse Thruster | -6/Data Miner | Free Exp. Heat Sink | -6/Data Miner | Free Hvy. Gatling Laser | -6/Data Miner | Free Imp. Antigrav System | -6/Data Miner | Free Adv. Thermal Shield | -6/Data Miner | Free HERF Cannon | -6/Data Miner | Free Biometal Medium Treads | -6/Data Miner | Free Adv. Matter Compressor | -5/Factory | Scanalyzed Imp. Cloaking Device | -5/Factory | Scanalyzed Lgt. Neutrino Core | -5/Factory | Scanalyzed Exp. Weapon Shielding | -5/Factory | Hacked Exp. Propulsion Shielding | -5/Factory | Hacked Prc. Rocket Launcher | -5/Factory | Scanalyzed Exp. Utility Shielding | -5/Factory | Hacked Imp. Matter Compressor | -5/Factory | Scanalyzed Adv. Transmission Jammer | -5/Factory | Hacked Adv. Cooling System | -5/Factory | Hacked Gravity Neutralizer | -4/Factory | Hacked Lrn. Terrain Scanner | -4/Factory | Hacked Assault Drone Bay | -4/Zhirov | Free Exp. Optical Array | -4/Zhirov | Free Imp. Arc Thrower | -4/Zhirov | Free Mic. Fission Core | -2/Research | Scanalyzed Exp. Terrain Scan Processor | -2/Testing | Hacked Robot Schematics ------------------ A-02 Transporter | -7/Zion | Archive H-88 Terminator | -7/Zion | Archive K-01 Serf | -7/Zion | Archive M-14 Sweeper | -7/Zion | Archive A-15 Conveyor | -6/Data Miner | Free B-60 Warrior | -6/Data Miner | Free B-48 Gladiator | -6/Data Miner | Free S-27 Virus | -6/Data Miner | Free I-47 Archangel | -6/Data Miner | Free H-77 Assassin | -6/Data Miner | Free Fabricated ------------ Adv. Sensor Array | x1 | -7/Factory | Authchip Adv. Hacking Suite | x1 | -6/Factory | Authchip Cld. Nuclear Pulse Thruster | x1 | -5/Factory | Authchip Adv. Hacking Suite | x1 | -5/Factory | Authchip Cld. Nuclear Pulse Thruster | x1 | -5/Factory | Authchip Cld. Nuclear Pulse Thruster | x1 | -4/Factory | Authchip Lrn. Terrain Scanner | x1 | -4/Factory | Authchip Exp. Weapon Shielding | x1 | -2/Research Adv. Sensor Array | x1 | -2/Testing Exp. Terrain Scan Processor | x1 | -2/Testing Alien Tech Used ----------------- Integrated Reactor Integrated Thermoelectric Network Spacefold Activator Subatomic Replicator Transdimensional Reconstructor Achievements -------------- None Challenges ------------ None Game ------ Seed OmegaBombardmentWell Manual? 0 Play Time 03:20:39 Cumulative 501.6 hours Start 2022.06.25 @ 15:48:23 End 2022.06.26 @ 19:12:36 Sessions 7 Manual Loads 0 Difficulty Rogue Special Mode None Game No. 468 Rogue 468 Adventurer 0 Explorer 0 Win Type - Total 22 Types 13/2/4/2/0/0/0/1/0 Lore% 94 Gallery% 93 Achievement% 78 Wizard Run 0 Options --------- ASCII 0 Keyboard 0 Movement Arrows Keybinds 0 Fullscreen 1 Font 18/Smallcaps Map View 76x50 Tactical HUD 1 Map Filters NONE Filters NONE Steam 1 RUN: b8775f8e-d911-4004-969d-f19f428c942e